{"text_format":"1","workbook":"xlsx","n_sheets":3,"sheets":["الإجمالى","علاج الأسنان","تركيب نظارة"],"not_rendered":{"charts":0,"images":3,"macros":1,"external_links":0,"defined_names":0,"comments":0,"pivot_tables":0},"unopened":[],"bounds":{"document_bytes":16777216,"sheet_cells":100000,"rows_first":2000,"rows_last":500,"rows_between":2000,"halvings":0,"cell_chars":16384,"cell_head_chars":4096},"cells_cut":0,"cells_raw":0,"read":"whole","date_system":"1900"}

{"sheet":"الإجمالى","index":0,"n_rows":1003,"n_cols":27,"rows_kept":1003,"cut":false,"hidden":false,"merged":[[0,1,6,2],[1,4,1,6],[3,4,3,6]]}
[null,null,null,null,null,null,null,null,null,50000,null,"3",{"$f":"kh_ShowImage(L1,B1,108,108)","v":true},null,null,null,null,null,null,null,null,null,null,1]
[null,null,null,null,"اسم الشركة",null,null,null,null,null,null,null,null,null,null,null,null,null,null,null,null,null,null,2]
[null,null,null,null,null,null,null,null,null,null,null,null,null,null,null,null,null,null,null,null,null,null,null,3]
[null,null,null,null,"تقرير إجمالى عن جميع الحالات",null,null,null,null,null,null,null,null,null,null,null,null,null,null,null,null,null,null,4]
[null,null,null,null,null,null,null,null,null,null,null,null,null,null,null,null,null,null,null,null,null,null,null,5]
[null,null,null,null,null,null,null,null,null,null,null,null,null,null,null,null,null,null,null,null,null,null,null,6,null,null,"الموظف نفسه"]
[null,null,null,null,null,null,null,null,null,null,null,null,null,null,null,null,null,null,null,null,null,null,null,7,null,null,"الأب"]
[null,"م","التاريخ","اسم الموظف","اسم المريض","صله القرابه","رقم الملخص","تشخيص الحاله المرضية","القيمة المصروفة","الرصيد","القيمة المتبقية",null,null,null,null,null,null,null,null,null,null,null,null,8,null,null,"الأم"]
[null,1,"2015-12-14","ff","s","الأب",1,"gf",null,{"$f":"SUM($J$1-I9)","v":50000},{"$f":"J9","v":50000},null,null,null,null,null,null,null,null,null,null,null,null,9,null,null,"الأبن"]
[null,2,null,null,null,null,null,null,null,{"$f":"SUM($J$1-I10)","v":50000},{"$f":"J10","v":50000},null,null,null,null,null,null,null,null,null,null,null,null,10,null,null,"الأبنه"]
[null,3,null,null,null,null,null,null,null,50000,50000,null,null,null,null,null,null,null,null,null,null,null,null,null,null,null,"الأخ"]
[null,4,null,null,null,null,null,null,null,50000,50000,null,null,null,null,null,null,null,null,null,null,null,null,null,null,null,"الأخت"]
[null,5,null,null,null,null,null,null,null,50000,50000,null,null,null,null,null,null,null,null,null,null,null,null,null,null,null,"الزوجه"]
[null,6,null,null,null,null,null,null,null,50000,50000,null,null,null,null,null,null,null,null,null,null,null,null,null,null,null,"الحفيد"]
[null,7,null,null,null,null,null,null,null,50000,50000,null,null,null,null,null,null,null,null,null,null,null,null,null,null,null,"الحفيده"]
[null,8,null,null,null,null,null,null,null,50000,50000]
[null,9,null,null,null,null,null,null,null,50000,50000]
[null,10,null,null,null,null,null,null,null,50000,50000]
[null,11,null,null,null,null,null,null,null,50000,50000]
[null,12,null,null,null,null,null,null,null,50000,50000]
[null,13,null,null,null,null,null,null,null,50000,50000]
[null,14,null,null,null,null,null,null,null,50000,50000]
[null,15,null,null,null,null,null,null,null,50000,50000]
[null,16,null,null,null,null,null,null,null,50000,50000]
[null,17,null,null,null,null,null,null,null,50000,50000]
[null,18,null,null,null,null,null,null,null,50000,50000]
[null,19,null,null,null,null,null,null,null,50000,50000]
[null,20,null,null,null,null,null,null,null,50000,50000]
[null,21,null,null,null,null,null,null,null,50000,50000]
[null,22,null,null,null,null,null,null,null,50000,50000]
[null,23,null,null,null,null,null,null,null,50000,50000]
[null,24,null,null,null,null,null,null,null,50000,50000]
[null,25,null,null,null,null,null,null,null,50000,50000]
[null,26,null,null,null,null,null,null,null,50000,50000]
[null,27,null,null,null,null,null,null,null,50000,50000]
[null,28,null,null,null,null,null,null,null,50000,50000]
[null,29,null,null,null,null,null,null,null,50000,50000]
[null,30,null,null,null,null,null,null,null,50000,50000]
[null,31,null,null,null,null,null,null,null,50000,50000]
[null,32,null,null,null,null,null,null,null,50000,50000]
[null,33,null,null,null,null,null,null,null,50000,50000]
[null,34,null,null,null,null,null,null,null,50000,50000]
[null,35,null,null,null,null,null,null,null,50000,50000]
[null,36,null,null,null,null,null,null,null,50000,50000]
[null,37,null,null,null,null,null,null,null,50000,50000]
[null,38,null,null,null,null,null,null,null,50000,50000]
[null,39,null,null,null,null,null,null,null,50000,50000]
[null,40,null,null,null,null,null,null,null,50000,50000]
[null,41,null,null,null,null,null,null,null,50000,50000]
[null,42,null,null,null,null,null,null,null,50000,50000]
[null,43,null,null,null,null,null,null,null,50000,50000]
[null,44,null,null,null,null,null,null,null,50000,50000]
[null,45,null,null,null,null,null,null,null,50000,50000]
[null,46,null,null,null,null,null,null,null,50000,50000]
[null,47,null,null,null,null,null,null,null,50000,50000]
[null,48,null,null,null,null,null,null,null,50000,50000]
[null,49,null,null,null,null,null,null,null,50000,50000]
[null,50,null,null,null,null,null,null,null,50000,50000]
[null,51,null,null,null,null,null,null,null,50000,50000]
[null,52,null,null,null,null,null,null,null,50000,50000]
[null,53,null,null,null,null,null,null,null,50000,50000]
[null,54,null,null,null,null,null,null,null,50000,50000]
[null,55,null,null,null,null,null,null,null,50000,50000]
[null,56,null,null,null,null,null,null,null,50000,50000]
[null,57,null,null,null,null,null,null,null,50000,50000]
[null,58,null,null,null,null,null,null,null,50000,50000]
[null,59,null,null,null,null,null,null,null,50000,50000]
[null,60,null,null,null,null,null,null,null,50000,50000]
[null,61,null,null,null,null,null,null,null,50000,50000]
[null,62,null,null,null,null,null,null,null,50000,50000]
[null,63,null,null,null,null,null,null,null,50000,50000]
[null,64,null,null,null,null,null,null,null,50000,50000]
[null,65,null,null,null,null,null,null,null,50000,50000]
[null,66,null,null,null,null,null,null,null,{"$f":"SUM($J$1-I74)","v":50000},{"$f":"J74","v":50000}]
[null,67,null,null,null,null,null,null,null,50000,50000]
[null,68,null,null,null,null,null,null,null,50000,50000]
[null,69,null,null,null,null,null,null,null,50000,50000]
[null,70,null,null,null,null,null,null,null,50000,50000]
[null,71,null,null,null,null,null,null,null,50000,50000]
[null,72,null,null,null,null,null,null,null,50000,50000]
[null,73,null,null,null,null,null,null,null,50000,50000]
[null,74,null,null,null,null,null,null,null,50000,50000]
[null,75,null,null,null,null,null,null,null,50000,50000]
[null,76,null,null,null,null,null,null,null,50000,50000]
[null,77,null,null,null,null,null,null,null,50000,50000]
[null,78,null,null,null,null,null,null,null,50000,50000]
[null,79,null,null,null,null,null,null,null,50000,50000]
[null,80,null,null,null,null,null,null,null,50000,50000]
[null,81,null,null,null,null,null,null,null,50000,50000]
[null,82,null,null,null,null,null,null,null,50000,50000]
[null,83,null,null,null,null,null,null,null,50000,50000]
[null,84,null,null,null,null,null,null,null,50000,50000]
[null,85,null,null,null,null,null,null,null,50000,50000]
[null,86,null,null,null,null,null,null,null,50000,50000]
[null,87,null,null,null,null,null,null,null,50000,50000]
[null,88,null,null,null,null,null,null,null,50000,50000]
[null,89,null,null,null,null,null,null,null,50000,50000]
[null,90,null,null,null,null,null,null,null,50000,50000]
[null,91,null,null,null,null,null,null,null,50000,50000]
[null,92,null,null,null,null,null,null,null,50000,50000]
[null,93,null,null,null,null,null,null,null,50000,50000]
[null,94,null,null,null,null,null,null,null,50000,50000]
[null,95,null,null,null,null,null,null,null,50000,50000]
[null,96,null,null,null,null,null,null,null,50000,50000]
[null,97,null,null,null,null,null,null,null,50000,50000]
[null,98,null,null,null,null,null,null,null,50000,50000]
[null,99,null,null,null,null,null,null,null,50000,50000]
[null,100,null,null,null,null,null,null,null,50000,50000]
[null,null,null,null,null,null,null,null,null,50000,50000]
[null,null,null,null,null,null,null,null,null,50000,50000]
[null,null,null,null,null,null,null,null,null,50000,50000]
[null,null,null,null,null,null,null,null,null,50000,50000]
[null,null,null,null,null,null,null,null,null,50000,50000]
[null,null,null,null,null,null,null,null,null,50000,50000]
[null,null,null,null,null,null,null,null,null,50000,50000]
[null,null,null,null,null,null,null,null,null,50000,50000]
[null,null,null,null,null,null,null,null,null,50000,50000]
[null,null,null,null,null,null,null,null,null,50000,50000]
[null,null,null,null,null,null,null,null,null,50000,50000]
[null,null,null,null,null,null,null,null,null,50000,50000]
[null,null,null,null,null,null,null,null,null,50000,50000]
[null,null,null,null,null,null,null,null,null,50000,50000]
[null,null,null,null,null,null,null,null,null,50000,50000]
[null,null,null,null,null,null,null,null,null,50000,50000]
[null,null,null,null,null,null,null,null,null,50000,50000]
[null,null,null,null,null,null,null,null,null,50000,50000]
[null,null,null,null,null,null,null,null,null,50000,50000]
[null,null,null,null,null,null,null,null,null,50000,50000]
[null,null,null,null,null,null,null,null,null,50000,50000]
[null,null,null,null,null,null,null,null,null,50000,50000]
[null,null,null,null,null,null,null,null,null,50000,50000]
[null,null,null,null,null,null,null,null,null,50000,50000]
[null,null,null,null,null,null,null,null,null,50000,50000]
[null,null,null,null,null,null,null,null,null,50000,50000]
[null,null,null,null,null,null,null,null,null,50000,50000]
[null,null,null,null,null,null,null,null,null,50000,50000]
[null,null,null,null,null,null,null,null,null,50000,50000]
[null,null,null,null,null,null,null,null,null,{"$f":"SUM($J$1-I138)","v":50000},{"$f":"J138","v":50000}]
[null,null,null,null,null,null,null,null,null,50000,50000]
[null,null,null,null,null,null,null,null,null,50000,50000]
[null,null,null,null,null,null,null,null,null,50000,50000]
[null,null,null,null,null,null,null,null,null,50000,50000]
[null,null,null,null,null,null,null,null,null,50000,50000]
[null,null,null,null,null,null,null,null,null,50000,50000]
[null,null,null,null,null,null,null,null,null,50000,50000]
[null,null,null,null,null,null,null,null,null,50000,50000]
[null,null,null,null,null,null,null,null,null,50000,50000]
[null,null,null,null,null,null,null,null,null,50000,50000]
[null,null,null,null,null,null,null,null,null,50000,50000]
[null,null,null,null,null,null,null,null,null,50000,50000]
[null,null,null,null,null,null,null,null,null,50000,50000]
[null,null,null,null,null,null,null,null,null,50000,50000]
[null,null,null,null,null,null,null,null,null,50000,50000]
[null,null,null,null,null,null,null,null,null,50000,50000]
[null,null,null,null,null,null,null,null,null,50000,50000]
[null,null,null,null,null,null,null,null,null,50000,50000]
[null,null,null,null,null,null,null,null,null,50000,50000]
[null,null,null,null,null,null,null,null,null,50000,50000]
[null,null,null,null,null,null,null,null,null,50000,50000]
[null,null,null,null,null,null,null,null,null,50000,50000]
[null,null,null,null,null,null,null,null,null,50000,50000]
[null,null,null,null,null,null,null,null,null,50000,50000]
[null,null,null,null,null,null,null,null,null,50000,50000]
[null,null,null,null,null,null,null,null,null,50000,50000]
[null,null,null,null,null,null,null,null,null,50000,50000]
[null,null,null,null,null,null,null,null,null,50000,50000]
[null,null,null,null,null,null,null,null,null,50000,50000]
[null,null,null,null,null,null,null,null,null,50000,50000]
[null,null,null,null,null,null,null,null,null,50000,50000]
[null,null,null,null,null,null,null,null,null,50000,50000]
[null,null,null,null,null,null,null,null,null,50000,50000]
[null,null,null,null,null,null,null,null,null,50000,50000]
[null,null,null,null,null,null,null,null,null,50000,50000]
[null,null,null,null,null,null,null,null,null,50000,50000]
[null,null,null,null,null,null,null,null,null,50000,50000]
[null,null,null,null,null,null,null,null,null,50000,50000]
[null,null,null,null,null,null,null,null,null,50000,50000]
[null,null,null,null,null,null,null,null,null,50000,50000]
[null,null,null,null,null,null,null,null,null,50000,50000]
[null,null,null,null,null,null,null,null,null,50000,50000]
[null,null,null,null,null,null,null,null,null,50000,50000]
[null,null,null,null,null,null,null,null,null,50000,50000]
[null,null,null,null,null,null,null,null,null,50000,50000]
[null,null,null,null,null,null,null,null,null,50000,50000]
[null,null,null,null,null,null,null,null,null,50000,50000]
[null,null,null,null,null,null,null,null,null,50000,50000]
[null,null,null,null,null,null,null,null,null,50000,50000]
[null,null,null,null,null,null,null,null,null,50000,50000]
[null,null,null,null,null,null,null,null,null,50000,50000]
[null,null,null,null,null,null,null,null,null,50000,50000]
[null,null,null,null,null,null,null,null,null,50000,50000]
[null,null,null,null,null,null,null,null,null,50000,50000]
[null,null,null,null,null,null,null,null,null,50000,50000]
[null,null,null,null,null,null,null,null,null,50000,50000]
[null,null,null,null,null,null,null,null,null,50000,50000]
[null,null,null,null,null,null,null,null,null,50000,50000]
[null,null,null,null,null,null,null,null,null,50000,50000]
[null,null,null,null,null,null,null,null,null,50000,50000]
[null,null,null,null,null,null,null,null,null,50000,50000]
[null,null,null,null,null,null,null,null,null,50000,50000]
[null,null,null,null,null,null,null,null,null,50000,50000]
[null,null,null,null,null,null,null,null,null,{"$f":"SUM($J$1-I202)","v":50000},{"$f":"J202","v":50000}]
[null,null,null,null,null,null,null,null,null,50000,50000]
[null,null,null,null,null,null,null,null,null,50000,50000]
[null,null,null,null,null,null,null,null,null,50000,50000]
[null,null,null,null,null,null,null,null,null,50000,50000]
[null,null,null,null,null,null,null,null,null,50000,50000]
[null,null,null,null,null,null,null,null,null,50000,50000]
[null,null,null,null,null,null,null,null,null,50000,50000]
[null,null,null,null,null,null,null,null,null,50000,50000]
[null,null,null,null,null,null,null,null,null,50000,50000]
[null,null,null,null,null,null,null,null,null,50000,50000]
[null,null,null,null,null,null,null,null,null,50000,50000]
[null,null,null,null,null,null,null,null,null,50000,50000]
[null,null,null,null,null,null,null,null,null,50000,50000]
[null,null,null,null,null,null,null,null,null,50000,50000]
[null,null,null,null,null,null,null,null,null,50000,50000]
[null,null,null,null,null,null,null,null,null,50000,50000]
[null,null,null,null,null,null,null,null,null,50000,50000]
[null,null,null,null,null,null,null,null,null,50000,50000]
[null,null,null,null,null,null,null,null,null,50000,50000]
[null,null,null,null,null,null,null,null,null,50000,50000]
[null,null,null,null,null,null,null,null,null,50000,50000]
[null,null,null,null,null,null,null,null,null,50000,50000]
[null,null,null,null,null,null,null,null,null,50000,50000]
[null,null,null,null,null,null,null,null,null,50000,50000]
[null,null,null,null,null,null,null,null,null,50000,50000]
[null,null,null,null,null,null,null,null,null,50000,50000]
[null,null,null,null,null,null,null,null,null,50000,50000]
[null,null,null,null,null,null,null,null,null,50000,50000]
[null,null,null,null,null,null,null,null,null,50000,50000]
[null,null,null,null,null,null,null,null,null,50000,50000]
[null,null,null,null,null,null,null,null,null,50000,50000]
[null,null,null,null,null,null,null,null,null,50000,50000]
[null,null,null,null,null,null,null,null,null,50000,50000]
[null,null,null,null,null,null,null,null,null,50000,50000]
[null,null,null,null,null,null,null,null,null,50000,50000]
[null,null,null,null,null,null,null,null,null,50000,50000]
[null,null,null,null,null,null,null,null,null,50000,50000]
[null,null,null,null,null,null,null,null,null,50000,50000]
[null,null,null,null,null,null,null,null,null,50000,50000]
[null,null,null,null,null,null,null,null,null,50000,50000]
[null,null,null,null,null,null,null,null,null,50000,50000]
[null,null,null,null,null,null,null,null,null,50000,50000]
[null,null,null,null,null,null,null,null,null,50000,50000]
[null,null,null,null,null,null,null,null,null,50000,50000]
[null,null,null,null,null,null,null,null,null,50000,50000]
[null,null,null,null,null,null,null,null,null,50000,50000]
[null,null,null,null,null,null,null,null,null,50000,50000]
[null,null,null,null,null,null,null,null,null,50000,50000]
[null,null,null,null,null,null,null,null,null,50000,50000]
[null,null,null,null,null,null,null,null,null,50000,50000]
[null,null,null,null,null,null,null,null,null,50000,50000]
[null,null,null,null,null,null,null,null,null,50000,50000]
[null,null,null,null,null,null,null,null,null,50000,50000]
[null,null,null,null,null,null,null,null,null,50000,50000]
[null,null,null,null,null,null,null,null,null,50000,50000]
[null,null,null,null,null,null,null,null,null,50000,50000]
[null,null,null,null,null,null,null,null,null,50000,50000]
[null,null,null,null,null,null,null,null,null,50000,50000]
[null,null,null,null,null,null,null,null,null,50000,50000]
[null,null,null,null,null,null,null,null,null,50000,50000]
[null,null,null,null,null,null,null,null,null,50000,50000]
[null,null,null,null,null,null,null,null,null,50000,50000]
[null,null,null,null,null,null,null,null,null,50000,50000]
[null,null,null,null,null,null,null,null,null,{"$f":"SUM($J$1-I266)","v":50000},{"$f":"J266","v":50000}]
[null,null,null,null,null,null,null,null,null,50000,50000]
[null,null,null,null,null,null,null,null,null,50000,50000]
[null,null,null,null,null,null,null,null,null,50000,50000]
[null,null,null,null,null,null,null,null,null,50000,50000]
[null,null,null,null,null,null,null,null,null,50000,50000]
[null,null,null,null,null,null,null,null,null,50000,50000]
[null,null,null,null,null,null,null,null,null,50000,50000]
[null,null,null,null,null,null,null,null,null,50000,50000]
[null,null,null,null,null,null,null,null,null,50000,50000]
[null,null,null,null,null,null,null,null,null,50000,50000]
[null,null,null,null,null,null,null,null,null,50000,50000]
[null,null,null,null,null,null,null,null,null,50000,50000]
[null,null,null,null,null,null,null,null,null,50000,50000]
[null,null,null,null,null,null,null,null,null,50000,50000]
[null,null,null,null,null,null,null,null,null,50000,50000]
[null,null,null,null,null,null,null,null,null,50000,50000]
[null,null,null,null,null,null,null,null,null,50000,50000]
[null,null,null,null,null,null,null,null,null,50000,50000]
[null,null,null,null,null,null,null,null,null,50000,50000]
[null,null,null,null,null,null,null,null,null,50000,50000]
[null,null,null,null,null,null,null,null,null,50000,50000]
[null,null,null,null,null,null,null,null,null,50000,50000]
[null,null,null,null,null,null,null,null,null,50000,50000]
[null,null,null,null,null,null,null,null,null,50000,50000]
[null,null,null,null,null,null,null,null,null,50000,50000]
[null,null,null,null,null,null,null,null,null,50000,50000]
[null,null,null,null,null,null,null,null,null,50000,50000]
[null,null,null,null,null,null,null,null,null,50000,50000]
[null,null,null,null,null,null,null,null,null,50000,50000]
[null,null,null,null,null,null,null,null,null,50000,50000]
[null,null,null,null,null,null,null,null,null,50000,50000]
[null,null,null,null,null,null,null,null,null,50000,50000]
[null,null,null,null,null,null,null,null,null,50000,50000]
[null,null,null,null,null,null,null,null,null,50000,50000]
[null,null,null,null,null,null,null,null,null,50000,50000]
[null,null,null,null,null,null,null,null,null,50000,50000]
[null,null,null,null,null,null,null,null,null,50000,50000]
[null,null,null,null,null,null,null,null,null,50000,50000]
[null,null,null,null,null,null,null,null,null,50000,50000]
[null,null,null,null,null,null,null,null,null,50000,50000]
[null,null,null,null,null,null,null,null,null,50000,50000]
[null,null,null,null,null,null,null,null,null,50000,50000]
[null,null,null,null,null,null,null,null,null,50000,50000]
[null,null,null,null,null,null,null,null,null,50000,50000]
[null,null,null,null,null,null,null,null,null,50000,50000]
[null,null,null,null,null,null,null,null,null,50000,50000]
[null,null,null,null,null,null,null,null,null,50000,50000]
[null,null,null,null,null,null,null,null,null,50000,50000]
[null,null,null,null,null,null,null,null,null,50000,50000]
[null,null,null,null,null,null,null,null,null,50000,50000]
[null,null,null,null,null,null,null,null,null,50000,50000]
[null,null,null,null,null,null,null,null,null,50000,50000]
[null,null,null,null,null,null,null,null,null,50000,50000]
[null,null,null,null,null,null,null,null,null,50000,50000]
[null,null,null,null,null,null,null,null,null,50000,50000]
[null,null,null,null,null,null,null,null,null,50000,50000]
[null,null,null,null,null,null,null,null,null,50000,50000]
[null,null,null,null,null,null,null,null,null,50000,50000]
[null,null,null,null,null,null,null,null,null,50000,50000]
[null,null,null,null,null,null,null,null,null,50000,50000]
[null,null,null,null,null,null,null,null,null,50000,50000]
[null,null,null,null,null,null,null,null,null,50000,50000]
[null,null,null,null,null,null,null,null,null,50000,50000]
[null,null,null,null,null,null,null,null,null,{"$f":"SUM($J$1-I330)","v":50000},{"$f":"J330","v":50000}]
[null,null,null,null,null,null,null,null,null,50000,50000]
[null,null,null,null,null,null,null,null,null,50000,50000]
[null,null,null,null,null,null,null,null,null,50000,50000]
[null,null,null,null,null,null,null,null,null,50000,50000]
[null,null,null,null,null,null,null,null,null,50000,50000]
[null,null,null,null,null,null,null,null,null,50000,50000]
[null,null,null,null,null,null,null,null,null,50000,50000]
[null,null,null,null,null,null,null,null,null,50000,50000]
[null,null,null,null,null,null,null,null,null,50000,50000]
[null,null,null,null,null,null,null,null,null,50000,50000]
[null,null,null,null,null,null,null,null,null,50000,50000]
[null,null,null,null,null,null,null,null,null,50000,50000]
[null,null,null,null,null,null,null,null,null,50000,50000]
[null,null,null,null,null,null,null,null,null,50000,50000]
[null,null,null,null,null,null,null,null,null,50000,50000]
[null,null,null,null,null,null,null,null,null,50000,50000]
[null,null,null,null,null,null,null,null,null,50000,50000]
[null,null,null,null,null,null,null,null,null,50000,50000]
[null,null,null,null,null,null,null,null,null,50000,50000]
[null,null,null,null,null,null,null,null,null,50000,50000]
[null,null,null,null,null,null,null,null,null,50000,50000]
[null,null,null,null,null,null,null,null,null,50000,50000]
[null,null,null,null,null,null,null,null,null,50000,50000]
[null,null,null,null,null,null,null,null,null,50000,50000]
[null,null,null,null,null,null,null,null,null,50000,50000]
[null,null,null,null,null,null,null,null,null,50000,50000]
[null,null,null,null,null,null,null,null,null,50000,50000]
[null,null,null,null,null,null,null,null,null,50000,50000]
[null,null,null,null,null,null,null,null,null,50000,50000]
[null,null,null,null,null,null,null,null,null,50000,50000]
[null,null,null,null,null,null,null,null,null,50000,50000]
[null,null,null,null,null,null,null,null,null,50000,50000]
[null,null,null,null,null,null,null,null,null,50000,50000]
[null,null,null,null,null,null,null,null,null,50000,50000]
[null,null,null,null,null,null,null,null,null,50000,50000]
[null,null,null,null,null,null,null,null,null,50000,50000]
[null,null,null,null,null,null,null,null,null,50000,50000]
[null,null,null,null,null,null,null,null,null,50000,50000]
[null,null,null,null,null,null,null,null,null,50000,50000]
[null,null,null,null,null,null,null,null,null,50000,50000]
[null,null,null,null,null,null,null,null,null,50000,50000]
[null,null,null,null,null,null,null,null,null,50000,50000]
[null,null,null,null,null,null,null,null,null,50000,50000]
[null,null,null,null,null,null,null,null,null,50000,50000]
[null,null,null,null,null,null,null,null,null,50000,50000]
[null,null,null,null,null,null,null,null,null,50000,50000]
[null,null,null,null,null,null,null,null,null,50000,50000]
[null,null,null,null,null,null,null,null,null,50000,50000]
[null,null,null,null,null,null,null,null,null,50000,50000]
[null,null,null,null,null,null,null,null,null,50000,50000]
[null,null,null,null,null,null,null,null,null,50000,50000]
[null,null,null,null,null,null,null,null,null,50000,50000]
[null,null,null,null,null,null,null,null,null,50000,50000]
[null,null,null,null,null,null,null,null,null,50000,50000]
[null,null,null,null,null,null,null,null,null,50000,50000]
[null,null,null,null,null,null,null,null,null,50000,50000]
[null,null,null,null,null,null,null,null,null,50000,50000]
[null,null,null,null,null,null,null,null,null,50000,50000]
[null,null,null,null,null,null,null,null,null,50000,50000]
[null,null,null,null,null,null,null,null,null,50000,50000]
[null,null,null,null,null,null,null,null,null,50000,50000]
[null,null,null,null,null,null,null,null,null,50000,50000]
[null,null,null,null,null,null,null,null,null,50000,50000]
[null,null,null,null,null,null,null,null,null,{"$f":"SUM($J$1-I394)","v":50000},{"$f":"J394","v":50000}]
[null,null,null,null,null,null,null,null,null,50000,50000]
[null,null,null,null,null,null,null,null,null,50000,50000]
[null,null,null,null,null,null,null,null,null,50000,50000]
[null,null,null,null,null,null,null,null,null,50000,50000]
[null,null,null,null,null,null,null,null,null,50000,50000]
[null,null,null,null,null,null,null,null,null,50000,50000]
[null,null,null,null,null,null,null,null,null,50000,50000]
[null,null,null,null,null,null,null,null,null,50000,50000]
[null,null,null,null,null,null,null,null,null,50000,50000]
[null,null,null,null,null,null,null,null,null,50000,50000]
[null,null,null,null,null,null,null,null,null,50000,50000]
[null,null,null,null,null,null,null,null,null,50000,50000]
[null,null,null,null,null,null,null,null,null,50000,50000]
[null,null,null,null,null,null,null,null,null,50000,50000]
[null,null,null,null,null,null,null,null,null,50000,50000]
[null,null,null,null,null,null,null,null,null,50000,50000]
[null,null,null,null,null,null,null,null,null,50000,50000]
[null,null,null,null,null,null,null,null,null,50000,50000]
[null,null,null,null,null,null,null,null,null,50000,50000]
[null,null,null,null,null,null,null,null,null,50000,50000]
[null,null,null,null,null,null,null,null,null,50000,50000]
[null,null,null,null,null,null,null,null,null,50000,50000]
[null,null,null,null,null,null,null,null,null,50000,50000]
[null,null,null,null,null,null,null,null,null,50000,50000]
[null,null,null,null,null,null,null,null,null,50000,50000]
[null,null,null,null,null,null,null,null,null,50000,50000]
[null,null,null,null,null,null,null,null,null,50000,50000]
[null,null,null,null,null,null,null,null,null,50000,50000]
[null,null,null,null,null,null,null,null,null,50000,50000]
[null,null,null,null,null,null,null,null,null,50000,50000]
[null,null,null,null,null,null,null,null,null,50000,50000]
[null,null,null,null,null,null,null,null,null,50000,50000]
[null,null,null,null,null,null,null,null,null,50000,50000]
[null,null,null,null,null,null,null,null,null,50000,50000]
[null,null,null,null,null,null,null,null,null,50000,50000]
[null,null,null,null,null,null,null,null,null,50000,50000]
[null,null,null,null,null,null,null,null,null,50000,50000]
[null,null,null,null,null,null,null,null,null,50000,50000]
[null,null,null,null,null,null,null,null,null,50000,50000]
[null,null,null,null,null,null,null,null,null,50000,50000]
[null,null,null,null,null,null,null,null,null,50000,50000]
[null,null,null,null,null,null,null,null,null,50000,50000]
[null,null,null,null,null,null,null,null,null,50000,50000]
[null,null,null,null,null,null,null,null,null,50000,50000]
[null,null,null,null,null,null,null,null,null,50000,50000]
[null,null,null,null,null,null,null,null,null,50000,50000]
[null,null,null,null,null,null,null,null,null,50000,50000]
[null,null,null,null,null,null,null,null,null,50000,50000]
[null,null,null,null,null,null,null,null,null,50000,50000]
[null,null,null,null,null,null,null,null,null,50000,50000]
[null,null,null,null,null,null,null,null,null,50000,50000]
[null,null,null,null,null,null,null,null,null,50000,50000]
[null,null,null,null,null,null,null,null,null,50000,50000]
[null,null,null,null,null,null,null,null,null,50000,50000]
[null,null,null,null,null,null,null,null,null,50000,50000]
[null,null,null,null,null,null,null,null,null,50000,50000]
[null,null,null,null,null,null,null,null,null,50000,50000]
[null,null,null,null,null,null,null,null,null,50000,50000]
[null,null,null,null,null,null,null,null,null,50000,50000]
[null,null,null,null,null,null,null,null,null,50000,50000]
[null,null,null,null,null,null,null,null,null,50000,50000]
[null,null,null,null,null,null,null,null,null,50000,50000]
[null,null,null,null,null,null,null,null,null,50000,50000]
[null,null,null,null,null,null,null,null,null,{"$f":"SUM($J$1-I458)","v":50000},{"$f":"J458","v":50000}]
[null,null,null,null,null,null,null,null,null,50000,50000]
[null,null,null,null,null,null,null,null,null,50000,50000]
[null,null,null,null,null,null,null,null,null,50000,50000]
[null,null,null,null,null,null,null,null,null,50000,50000]
[null,null,null,null,null,null,null,null,null,50000,50000]
[null,null,null,null,null,null,null,null,null,50000,50000]
[null,null,null,null,null,null,null,null,null,50000,50000]
[null,null,null,null,null,null,null,null,null,50000,50000]
[null,null,null,null,null,null,null,null,null,50000,50000]
[null,null,null,null,null,null,null,null,null,50000,50000]
[null,null,null,null,null,null,null,null,null,50000,50000]
[null,null,null,null,null,null,null,null,null,50000,50000]
[null,null,null,null,null,null,null,null,null,50000,50000]
[null,null,null,null,null,null,null,null,null,50000,50000]
[null,null,null,null,null,null,null,null,null,50000,50000]
[null,null,null,null,null,null,null,null,null,50000,50000]
[null,null,null,null,null,null,null,null,null,50000,50000]
[null,null,null,null,null,null,null,null,null,50000,50000]
[null,null,null,null,null,null,null,null,null,50000,50000]
[null,null,null,null,null,null,null,null,null,50000,50000]
[null,null,null,null,null,null,null,null,null,50000,50000]
[null,null,null,null,null,null,null,null,null,50000,50000]
[null,null,null,null,null,null,null,null,null,50000,50000]
[null,null,null,null,null,null,null,null,null,50000,50000]
[null,null,null,null,null,null,null,null,null,50000,50000]
[null,null,null,null,null,null,null,null,null,50000,50000]
[null,null,null,null,null,null,null,null,null,50000,50000]
[null,null,null,null,null,null,null,null,null,50000,50000]
[null,null,null,null,null,null,null,null,null,50000,50000]
[null,null,null,null,null,null,null,null,null,50000,50000]
[null,null,null,null,null,null,null,null,null,50000,50000]
[null,null,null,null,null,null,null,null,null,50000,50000]
[null,null,null,null,null,null,null,null,null,50000,50000]
[null,null,null,null,null,null,null,null,null,50000,50000]
[null,null,null,null,null,null,null,null,null,50000,50000]
[null,null,null,null,null,null,null,null,null,50000,50000]
[null,null,null,null,null,null,null,null,null,50000,50000]
[null,null,null,null,null,null,null,null,null,50000,50000]
[null,null,null,null,null,null,null,null,null,50000,50000]
[null,null,null,null,null,null,null,null,null,50000,50000]
[null,null,null,null,null,null,null,null,null,50000,50000]
[null,null,null,null,null,null,null,null,null,50000,50000]
[null,null,null,null,null,null,null,null,null,50000,50000]
[null,null,null,null,null,null,null,null,null,50000,50000]
[null,null,null,null,null,null,null,null,null,50000,50000]
[null,null,null,null,null,null,null,null,null,50000,50000]
[null,null,null,null,null,null,null,null,null,50000,50000]
[null,null,null,null,null,null,null,null,null,50000,50000]
[null,null,null,null,null,null,null,null,null,50000,50000]
[null,null,null,null,null,null,null,null,null,50000,50000]
[null,null,null,null,null,null,null,null,null,50000,50000]
[null,null,null,null,null,null,null,null,null,50000,50000]
[null,null,null,null,null,null,null,null,null,50000,50000]
[null,null,null,null,null,null,null,null,null,50000,50000]
[null,null,null,null,null,null,null,null,null,50000,50000]
[null,null,null,null,null,null,null,null,null,50000,50000]
[null,null,null,null,null,null,null,null,null,50000,50000]
[null,null,null,null,null,null,null,null,null,50000,50000]
[null,null,null,null,null,null,null,null,null,50000,50000]
[null,null,null,null,null,null,null,null,null,50000,50000]
[null,null,null,null,null,null,null,null,null,50000,50000]
[null,null,null,null,null,null,null,null,null,50000,50000]
[null,null,null,null,null,null,null,null,null,50000,50000]
[null,null,null,null,null,null,null,null,null,{"$f":"SUM($J$1-I522)","v":50000},{"$f":"J522","v":50000}]
[null,null,null,null,null,null,null,null,null,50000,50000]
[null,null,null,null,null,null,null,null,null,50000,50000]
[null,null,null,null,null,null,null,null,null,50000,50000]
[null,null,null,null,null,null,null,null,null,50000,50000]
[null,null,null,null,null,null,null,null,null,50000,50000]
[null,null,null,null,null,null,null,null,null,50000,50000]
[null,null,null,null,null,null,null,null,null,50000,50000]
[null,null,null,null,null,null,null,null,null,50000,50000]
[null,null,null,null,null,null,null,null,null,50000,50000]
[null,null,null,null,null,null,null,null,null,50000,50000]
[null,null,null,null,null,null,null,null,null,50000,50000]
[null,null,null,null,null,null,null,null,null,50000,50000]
[null,null,null,null,null,null,null,null,null,50000,50000]
[null,null,null,null,null,null,null,null,null,50000,50000]
[null,null,null,null,null,null,null,null,null,50000,50000]
[null,null,null,null,null,null,null,null,null,50000,50000]
[null,null,null,null,null,null,null,null,null,50000,50000]
[null,null,null,null,null,null,null,null,null,50000,50000]
[null,null,null,null,null,null,null,null,null,50000,50000]
[null,null,null,null,null,null,null,null,null,50000,50000]
[null,null,null,null,null,null,null,null,null,50000,50000]
[null,null,null,null,null,null,null,null,null,50000,50000]
[null,null,null,null,null,null,null,null,null,50000,50000]
[null,null,null,null,null,null,null,null,null,50000,50000]
[null,null,null,null,null,null,null,null,null,50000,50000]
[null,null,null,null,null,null,null,null,null,50000,50000]
[null,null,null,null,null,null,null,null,null,50000,50000]
[null,null,null,null,null,null,null,null,null,50000,50000]
[null,null,null,null,null,null,null,null,null,50000,50000]
[null,null,null,null,null,null,null,null,null,50000,50000]
[null,null,null,null,null,null,null,null,null,50000,50000]
[null,null,null,null,null,null,null,null,null,50000,50000]
[null,null,null,null,null,null,null,null,null,50000,50000]
[null,null,null,null,null,null,null,null,null,50000,50000]
[null,null,null,null,null,null,null,null,null,50000,50000]
[null,null,null,null,null,null,null,null,null,50000,50000]
[null,null,null,null,null,null,null,null,null,50000,50000]
[null,null,null,null,null,null,null,null,null,50000,50000]
[null,null,null,null,null,null,null,null,null,50000,50000]
[null,null,null,null,null,null,null,null,null,50000,50000]
[null,null,null,null,null,null,null,null,null,50000,50000]
[null,null,null,null,null,null,null,null,null,50000,50000]
[null,null,null,null,null,null,null,null,null,50000,50000]
[null,null,null,null,null,null,null,null,null,50000,50000]
[null,null,null,null,null,null,null,null,null,50000,50000]
[null,null,null,null,null,null,null,null,null,50000,50000]
[null,null,null,null,null,null,null,null,null,50000,50000]
[null,null,null,null,null,null,null,null,null,50000,50000]
[null,null,null,null,null,null,null,null,null,50000,50000]
[null,null,null,null,null,null,null,null,null,50000,50000]
[null,null,null,null,null,null,null,null,null,50000,50000]
[null,null,null,null,null,null,null,null,null,50000,50000]
[null,null,null,null,null,null,null,null,null,50000,50000]
[null,null,null,null,null,null,null,null,null,50000,50000]
[null,null,null,null,null,null,null,null,null,50000,50000]
[null,null,null,null,null,null,null,null,null,50000,50000]
[null,null,null,null,null,null,null,null,null,50000,50000]
[null,null,null,null,null,null,null,null,null,50000,50000]
[null,null,null,null,null,null,null,null,null,50000,50000]
[null,null,null,null,null,null,null,null,null,50000,50000]
[null,null,null,null,null,null,null,null,null,50000,50000]
[null,null,null,null,null,null,null,null,null,50000,50000]
[null,null,null,null,null,null,null,null,null,50000,50000]
[null,null,null,null,null,null,null,null,null,{"$f":"SUM($J$1-I586)","v":50000},{"$f":"J586","v":50000}]
[null,null,null,null,null,null,null,null,null,50000,50000]
[null,null,null,null,null,null,null,null,null,50000,50000]
[null,null,null,null,null,null,null,null,null,50000,50000]
[null,null,null,null,null,null,null,null,null,50000,50000]
[null,null,null,null,null,null,null,null,null,50000,50000]
[null,null,null,null,null,null,null,null,null,50000,50000]
[null,null,null,null,null,null,null,null,null,50000,50000]
[null,null,null,null,null,null,null,null,null,50000,50000]
[null,null,null,null,null,null,null,null,null,50000,50000]
[null,null,null,null,null,null,null,null,null,50000,50000]
[null,null,null,null,null,null,null,null,null,50000,50000]
[null,null,null,null,null,null,null,null,null,50000,50000]
[null,null,null,null,null,null,null,null,null,50000,50000]
[null,null,null,null,null,null,null,null,null,50000,50000]
[null,null,null,null,null,null,null,null,null,50000,50000]
[null,null,null,null,null,null,null,null,null,50000,50000]
[null,null,null,null,null,null,null,null,null,50000,50000]
[null,null,null,null,null,null,null,null,null,50000,50000]
[null,null,null,null,null,null,null,null,null,50000,50000]
[null,null,null,null,null,null,null,null,null,50000,50000]
[null,null,null,null,null,null,null,null,null,50000,50000]
[null,null,null,null,null,null,null,null,null,50000,50000]
[null,null,null,null,null,null,null,null,null,50000,50000]
[null,null,null,null,null,null,null,null,null,50000,50000]
[null,null,null,null,null,null,null,null,null,50000,50000]
[null,null,null,null,null,null,null,null,null,50000,50000]
[null,null,null,null,null,null,null,null,null,50000,50000]
[null,null,null,null,null,null,null,null,null,50000,50000]
[null,null,null,null,null,null,null,null,null,50000,50000]
[null,null,null,null,null,null,null,null,null,50000,50000]
[null,null,null,null,null,null,null,null,null,50000,50000]
[null,null,null,null,null,null,null,null,null,50000,50000]
[null,null,null,null,null,null,null,null,null,50000,50000]
[null,null,null,null,null,null,null,null,null,50000,50000]
[null,null,null,null,null,null,null,null,null,50000,50000]
[null,null,null,null,null,null,null,null,null,50000,50000]
[null,null,null,null,null,null,null,null,null,50000,50000]
[null,null,null,null,null,null,null,null,null,50000,50000]
[null,null,null,null,null,null,null,null,null,50000,50000]
[null,null,null,null,null,null,null,null,null,50000,50000]
[null,null,null,null,null,null,null,null,null,50000,50000]
[null,null,null,null,null,null,null,null,null,50000,50000]
[null,null,null,null,null,null,null,null,null,50000,50000]
[null,null,null,null,null,null,null,null,null,50000,50000]
[null,null,null,null,null,null,null,null,null,50000,50000]
[null,null,null,null,null,null,null,null,null,50000,50000]
[null,null,null,null,null,null,null,null,null,50000,50000]
[null,null,null,null,null,null,null,null,null,50000,50000]
[null,null,null,null,null,null,null,null,null,50000,50000]
[null,null,null,null,null,null,null,null,null,50000,50000]
[null,null,null,null,null,null,null,null,null,50000,50000]
[null,null,null,null,null,null,null,null,null,50000,50000]
[null,null,null,null,null,null,null,null,null,50000,50000]
[null,null,null,null,null,null,null,null,null,50000,50000]
[null,null,null,null,null,null,null,null,null,50000,50000]
[null,null,null,null,null,null,null,null,null,50000,50000]
[null,null,null,null,null,null,null,null,null,50000,50000]
[null,null,null,null,null,null,null,null,null,50000,50000]
[null,null,null,null,null,null,null,null,null,50000,50000]
[null,null,null,null,null,null,null,null,null,50000,50000]
[null,null,null,null,null,null,null,null,null,50000,50000]
[null,null,null,null,null,null,null,null,null,50000,50000]
[null,null,null,null,null,null,null,null,null,50000,50000]
[null,null,null,null,null,null,null,null,null,{"$f":"SUM($J$1-I650)","v":50000},{"$f":"J650","v":50000}]
[null,null,null,null,null,null,null,null,null,50000,50000]
[null,null,null,null,null,null,null,null,null,50000,50000]
[null,null,null,null,null,null,null,null,null,50000,50000]
[null,null,null,null,null,null,null,null,null,50000,50000]
[null,null,null,null,null,null,null,null,null,50000,50000]
[null,null,null,null,null,null,null,null,null,50000,50000]
[null,null,null,null,null,null,null,null,null,50000,50000]
[null,null,null,null,null,null,null,null,null,50000,50000]
[null,null,null,null,null,null,null,null,null,50000,50000]
[null,null,null,null,null,null,null,null,null,50000,50000]
[null,null,null,null,null,null,null,null,null,50000,50000]
[null,null,null,null,null,null,null,null,null,50000,50000]
[null,null,null,null,null,null,null,null,null,50000,50000]
[null,null,null,null,null,null,null,null,null,50000,50000]
[null,null,null,null,null,null,null,null,null,50000,50000]
[null,null,null,null,null,null,null,null,null,50000,50000]
[null,null,null,null,null,null,null,null,null,50000,50000]
[null,null,null,null,null,null,null,null,null,50000,50000]
[null,null,null,null,null,null,null,null,null,50000,50000]
[null,null,null,null,null,null,null,null,null,50000,50000]
[null,null,null,null,null,null,null,null,null,50000,50000]
[null,null,null,null,null,null,null,null,null,50000,50000]
[null,null,null,null,null,null,null,null,null,50000,50000]
[null,null,null,null,null,null,null,null,null,50000,50000]
[null,null,null,null,null,null,null,null,null,50000,50000]
[null,null,null,null,null,null,null,null,null,50000,50000]
[null,null,null,null,null,null,null,null,null,50000,50000]
[null,null,null,null,null,null,null,null,null,50000,50000]
[null,null,null,null,null,null,null,null,null,50000,50000]
[null,null,null,null,null,null,null,null,null,50000,50000]
[null,null,null,null,null,null,null,null,null,50000,50000]
[null,null,null,null,null,null,null,null,null,50000,50000]
[null,null,null,null,null,null,null,null,null,50000,50000]
[null,null,null,null,null,null,null,null,null,50000,50000]
[null,null,null,null,null,null,null,null,null,50000,50000]
[null,null,null,null,null,null,null,null,null,50000,50000]
[null,null,null,null,null,null,null,null,null,50000,50000]
[null,null,null,null,null,null,null,null,null,50000,50000]
[null,null,null,null,null,null,null,null,null,50000,50000]
[null,null,null,null,null,null,null,null,null,50000,50000]
[null,null,null,null,null,null,null,null,null,50000,50000]
[null,null,null,null,null,null,null,null,null,50000,50000]
[null,null,null,null,null,null,null,null,null,50000,50000]
[null,null,null,null,null,null,null,null,null,50000,50000]
[null,null,null,null,null,null,null,null,null,50000,50000]
[null,null,null,null,null,null,null,null,null,50000,50000]
[null,null,null,null,null,null,null,null,null,50000,50000]
[null,null,null,null,null,null,null,null,null,50000,50000]
[null,null,null,null,null,null,null,null,null,50000,50000]
[null,null,null,null,null,null,null,null,null,50000,50000]
[null,null,null,null,null,null,null,null,null,50000,50000]
[null,null,null,null,null,null,null,null,null,50000,50000]
[null,null,null,null,null,null,null,null,null,50000,50000]
[null,null,null,null,null,null,null,null,null,50000,50000]
[null,null,null,null,null,null,null,null,null,50000,50000]
[null,null,null,null,null,null,null,null,null,50000,50000]
[null,null,null,null,null,null,null,null,null,50000,50000]
[null,null,null,null,null,null,null,null,null,50000,50000]
[null,null,null,null,null,null,null,null,null,50000,50000]
[null,null,null,null,null,null,null,null,null,50000,50000]
[null,null,null,null,null,null,null,null,null,50000,50000]
[null,null,null,null,null,null,null,null,null,50000,50000]
[null,null,null,null,null,null,null,null,null,50000,50000]
[null,null,null,null,null,null,null,null,null,{"$f":"SUM($J$1-I714)","v":50000},{"$f":"J714","v":50000}]
[null,null,null,null,null,null,null,null,null,50000,50000]
[null,null,null,null,null,null,null,null,null,50000,50000]
[null,null,null,null,null,null,null,null,null,50000,50000]
[null,null,null,null,null,null,null,null,null,50000,50000]
[null,null,null,null,null,null,null,null,null,50000,50000]
[null,null,null,null,null,null,null,null,null,50000,50000]
[null,null,null,null,null,null,null,null,null,50000,50000]
[null,null,null,null,null,null,null,null,null,50000,50000]
[null,null,null,null,null,null,null,null,null,50000,50000]
[null,null,null,null,null,null,null,null,null,50000,50000]
[null,null,null,null,null,null,null,null,null,50000,50000]
[null,null,null,null,null,null,null,null,null,50000,50000]
[null,null,null,null,null,null,null,null,null,50000,50000]
[null,null,null,null,null,null,null,null,null,50000,50000]
[null,null,null,null,null,null,null,null,null,50000,50000]
[null,null,null,null,null,null,null,null,null,50000,50000]
[null,null,null,null,null,null,null,null,null,50000,50000]
[null,null,null,null,null,null,null,null,null,50000,50000]
[null,null,null,null,null,null,null,null,null,50000,50000]
[null,null,null,null,null,null,null,null,null,50000,50000]
[null,null,null,null,null,null,null,null,null,50000,50000]
[null,null,null,null,null,null,null,null,null,50000,50000]
[null,null,null,null,null,null,null,null,null,50000,50000]
[null,null,null,null,null,null,null,null,null,50000,50000]
[null,null,null,null,null,null,null,null,null,50000,50000]
[null,null,null,null,null,null,null,null,null,50000,50000]
[null,null,null,null,null,null,null,null,null,50000,50000]
[null,null,null,null,null,null,null,null,null,50000,50000]
[null,null,null,null,null,null,null,null,null,50000,50000]
[null,null,null,null,null,null,null,null,null,50000,50000]
[null,null,null,null,null,null,null,null,null,50000,50000]
[null,null,null,null,null,null,null,null,null,50000,50000]
[null,null,null,null,null,null,null,null,null,50000,50000]
[null,null,null,null,null,null,null,null,null,50000,50000]
[null,null,null,null,null,null,null,null,null,50000,50000]
[null,null,null,null,null,null,null,null,null,50000,50000]
[null,null,null,null,null,null,null,null,null,50000,50000]
[null,null,null,null,null,null,null,null,null,50000,50000]
[null,null,null,null,null,null,null,null,null,50000,50000]
[null,null,null,null,null,null,null,null,null,50000,50000]
[null,null,null,null,null,null,null,null,null,50000,50000]
[null,null,null,null,null,null,null,null,null,50000,50000]
[null,null,null,null,null,null,null,null,null,50000,50000]
[null,null,null,null,null,null,null,null,null,50000,50000]
[null,null,null,null,null,null,null,null,null,50000,50000]
[null,null,null,null,null,null,null,null,null,50000,50000]
[null,null,null,null,null,null,null,null,null,50000,50000]
[null,null,null,null,null,null,null,null,null,50000,50000]
[null,null,null,null,null,null,null,null,null,50000,50000]
[null,null,null,null,null,null,null,null,null,50000,50000]
[null,null,null,null,null,null,null,null,null,50000,50000]
[null,null,null,null,null,null,null,null,null,50000,50000]
[null,null,null,null,null,null,null,null,null,50000,50000]
[null,null,null,null,null,null,null,null,null,50000,50000]
[null,null,null,null,null,null,null,null,null,50000,50000]
[null,null,null,null,null,null,null,null,null,50000,50000]
[null,null,null,null,null,null,null,null,null,50000,50000]
[null,null,null,null,null,null,null,null,null,50000,50000]
[null,null,null,null,null,null,null,null,null,50000,50000]
[null,null,null,null,null,null,null,null,null,50000,50000]
[null,null,null,null,null,null,null,null,null,50000,50000]
[null,null,null,null,null,null,null,null,null,50000,50000]
[null,null,null,null,null,null,null,null,null,50000,50000]
[null,null,null,null,null,null,null,null,null,{"$f":"SUM($J$1-I778)","v":50000},{"$f":"J778","v":50000}]
[null,null,null,null,null,null,null,null,null,50000,50000]
[null,null,null,null,null,null,null,null,null,50000,50000]
[null,null,null,null,null,null,null,null,null,50000,50000]
[null,null,null,null,null,null,null,null,null,50000,50000]
[null,null,null,null,null,null,null,null,null,50000,50000]
[null,null,null,null,null,null,null,null,null,50000,50000]
[null,null,null,null,null,null,null,null,null,50000,50000]
[null,null,null,null,null,null,null,null,null,50000,50000]
[null,null,null,null,null,null,null,null,null,50000,50000]
[null,null,null,null,null,null,null,null,null,50000,50000]
[null,null,null,null,null,null,null,null,null,50000,50000]
[null,null,null,null,null,null,null,null,null,50000,50000]
[null,null,null,null,null,null,null,null,null,50000,50000]
[null,null,null,null,null,null,null,null,null,50000,50000]
[null,null,null,null,null,null,null,null,null,50000,50000]
[null,null,null,null,null,null,null,null,null,50000,50000]
[null,null,null,null,null,null,null,null,null,50000,50000]
[null,null,null,null,null,null,null,null,null,50000,50000]
[null,null,null,null,null,null,null,null,null,50000,50000]
[null,null,null,null,null,null,null,null,null,50000,50000]
[null,null,null,null,null,null,null,null,null,50000,50000]
[null,null,null,null,null,null,null,null,null,50000,50000]
[null,null,null,null,null,null,null,null,null,50000,50000]
[null,null,null,null,null,null,null,null,null,50000,50000]
[null,null,null,null,null,null,null,null,null,50000,50000]
[null,null,null,null,null,null,null,null,null,50000,50000]
[null,null,null,null,null,null,null,null,null,50000,50000]
[null,null,null,null,null,null,null,null,null,50000,50000]
[null,null,null,null,null,null,null,null,null,50000,50000]
[null,null,null,null,null,null,null,null,null,50000,50000]
[null,null,null,null,null,null,null,null,null,50000,50000]
[null,null,null,null,null,null,null,null,null,50000,50000]
[null,null,null,null,null,null,null,null,null,50000,50000]
[null,null,null,null,null,null,null,null,null,50000,50000]
[null,null,null,null,null,null,null,null,null,50000,50000]
[null,null,null,null,null,null,null,null,null,50000,50000]
[null,null,null,null,null,null,null,null,null,50000,50000]
[null,null,null,null,null,null,null,null,null,50000,50000]
[null,null,null,null,null,null,null,null,null,50000,50000]
[null,null,null,null,null,null,null,null,null,50000,50000]
[null,null,null,null,null,null,null,null,null,50000,50000]
[null,null,null,null,null,null,null,null,null,50000,50000]
[null,null,null,null,null,null,null,null,null,50000,50000]
[null,null,null,null,null,null,null,null,null,50000,50000]
[null,null,null,null,null,null,null,null,null,50000,50000]
[null,null,null,null,null,null,null,null,null,50000,50000]
[null,null,null,null,null,null,null,null,null,50000,50000]
[null,null,null,null,null,null,null,null,null,50000,50000]
[null,null,null,null,null,null,null,null,null,50000,50000]
[null,null,null,null,null,null,null,null,null,50000,50000]
[null,null,null,null,null,null,null,null,null,50000,50000]
[null,null,null,null,null,null,null,null,null,50000,50000]
[null,null,null,null,null,null,null,null,null,50000,50000]
[null,null,null,null,null,null,null,null,null,50000,50000]
[null,null,null,null,null,null,null,null,null,50000,50000]
[null,null,null,null,null,null,null,null,null,50000,50000]
[null,null,null,null,null,null,null,null,null,50000,50000]
[null,null,null,null,null,null,null,null,null,50000,50000]
[null,null,null,null,null,null,null,null,null,50000,50000]
[null,null,null,null,null,null,null,null,null,50000,50000]
[null,null,null,null,null,null,null,null,null,50000,50000]
[null,null,null,null,null,null,null,null,null,50000,50000]
[null,null,null,null,null,null,null,null,null,50000,50000]
[null,null,null,null,null,null,null,null,null,{"$f":"SUM($J$1-I842)","v":50000},{"$f":"J842","v":50000}]
[null,null,null,null,null,null,null,null,null,50000,50000]
[null,null,null,null,null,null,null,null,null,50000,50000]
[null,null,null,null,null,null,null,null,null,50000,50000]
[null,null,null,null,null,null,null,null,null,50000,50000]
[null,null,null,null,null,null,null,null,null,50000,50000]
[null,null,null,null,null,null,null,null,null,50000,50000]
[null,null,null,null,null,null,null,null,null,50000,50000]
[null,null,null,null,null,null,null,null,null,50000,50000]
[null,null,null,null,null,null,null,null,null,50000,50000]
[null,null,null,null,null,null,null,null,null,50000,50000]
[null,null,null,null,null,null,null,null,null,50000,50000]
[null,null,null,null,null,null,null,null,null,50000,50000]
[null,null,null,null,null,null,null,null,null,50000,50000]
[null,null,null,null,null,null,null,null,null,50000,50000]
[null,null,null,null,null,null,null,null,null,50000,50000]
[null,null,null,null,null,null,null,null,null,50000,50000]
[null,null,null,null,null,null,null,null,null,50000,50000]
[null,null,null,null,null,null,null,null,null,50000,50000]
[null,null,null,null,null,null,null,null,null,50000,50000]
[null,null,null,null,null,null,null,null,null,50000,50000]
[null,null,null,null,null,null,null,null,null,50000,50000]
[null,null,null,null,null,null,null,null,null,50000,50000]
[null,null,null,null,null,null,null,null,null,50000,50000]
[null,null,null,null,null,null,null,null,null,50000,50000]
[null,null,null,null,null,null,null,null,null,50000,50000]
[null,null,null,null,null,null,null,null,null,50000,50000]
[null,null,null,null,null,null,null,null,null,50000,50000]
[null,null,null,null,null,null,null,null,null,50000,50000]
[null,null,null,null,null,null,null,null,null,50000,50000]
[null,null,null,null,null,null,null,null,null,50000,50000]
[null,null,null,null,null,null,null,null,null,50000,50000]
[null,null,null,null,null,null,null,null,null,50000,50000]
[null,null,null,null,null,null,null,null,null,50000,50000]
[null,null,null,null,null,null,null,null,null,50000,50000]
[null,null,null,null,null,null,null,null,null,50000,50000]
[null,null,null,null,null,null,null,null,null,50000,50000]
[null,null,null,null,null,null,null,null,null,50000,50000]
[null,null,null,null,null,null,null,null,null,50000,50000]
[null,null,null,null,null,null,null,null,null,50000,50000]
[null,null,null,null,null,null,null,null,null,50000,50000]
[null,null,null,null,null,null,null,null,null,50000,50000]
[null,null,null,null,null,null,null,null,null,50000,50000]
[null,null,null,null,null,null,null,null,null,50000,50000]
[null,null,null,null,null,null,null,null,null,50000,50000]
[null,null,null,null,null,null,null,null,null,50000,50000]
[null,null,null,null,null,null,null,null,null,50000,50000]
[null,null,null,null,null,null,null,null,null,50000,50000]
[null,null,null,null,null,null,null,null,null,50000,50000]
[null,null,null,null,null,null,null,null,null,50000,50000]
[null,null,null,null,null,null,null,null,null,50000,50000]
[null,null,null,null,null,null,null,null,null,50000,50000]
[null,null,null,null,null,null,null,null,null,50000,50000]
[null,null,null,null,null,null,null,null,null,50000,50000]
[null,null,null,null,null,null,null,null,null,50000,50000]
[null,null,null,null,null,null,null,null,null,50000,50000]
[null,null,null,null,null,null,null,null,null,50000,50000]
[null,null,null,null,null,null,null,null,null,50000,50000]
[null,null,null,null,null,null,null,null,null,50000,50000]
[null,null,null,null,null,null,null,null,null,50000,50000]
[null,null,null,null,null,null,null,null,null,50000,50000]
[null,null,null,null,null,null,null,null,null,50000,50000]
[null,null,null,null,null,null,null,null,null,50000,50000]
[null,null,null,null,null,null,null,null,null,50000,50000]
[null,null,null,null,null,null,null,null,null,{"$f":"SUM($J$1-I906)","v":50000},{"$f":"J906","v":50000}]
[null,null,null,null,null,null,null,null,null,50000,50000]
[null,null,null,null,null,null,null,null,null,50000,50000]
[null,null,null,null,null,null,null,null,null,50000,50000]
[null,null,null,null,null,null,null,null,null,50000,50000]
[null,null,null,null,null,null,null,null,null,50000,50000]
[null,null,null,null,null,null,null,null,null,50000,50000]
[null,null,null,null,null,null,null,null,null,50000,50000]
[null,null,null,null,null,null,null,null,null,50000,50000]
[null,null,null,null,null,null,null,null,null,50000,50000]
[null,null,null,null,null,null,null,null,null,50000,50000]
[null,null,null,null,null,null,null,null,null,50000,50000]
[null,null,null,null,null,null,null,null,null,50000,50000]
[null,null,null,null,null,null,null,null,null,50000,50000]
[null,null,null,null,null,null,null,null,null,50000,50000]
[null,null,null,null,null,null,null,null,null,50000,50000]
[null,null,null,null,null,null,null,null,null,50000,50000]
[null,null,null,null,null,null,null,null,null,50000,50000]
[null,null,null,null,null,null,null,null,null,50000,50000]
[null,null,null,null,null,null,null,null,null,50000,50000]
[null,null,null,null,null,null,null,null,null,50000,50000]
[null,null,null,null,null,null,null,null,null,50000,50000]
[null,null,null,null,null,null,null,null,null,50000,50000]
[null,null,null,null,null,null,null,null,null,50000,50000]
[null,null,null,null,null,null,null,null,null,50000,50000]
[null,null,null,null,null,null,null,null,null,50000,50000]
[null,null,null,null,null,null,null,null,null,50000,50000]
[null,null,null,null,null,null,null,null,null,50000,50000]
[null,null,null,null,null,null,null,null,null,50000,50000]
[null,null,null,null,null,null,null,null,null,50000,50000]
[null,null,null,null,null,null,null,null,null,50000,50000]
[null,null,null,null,null,null,null,null,null,50000,50000]
[null,null,null,null,null,null,null,null,null,50000,50000]
[null,null,null,null,null,null,null,null,null,50000,50000]
[null,null,null,null,null,null,null,null,null,50000,50000]
[null,null,null,null,null,null,null,null,null,50000,50000]
[null,null,null,null,null,null,null,null,null,50000,50000]
[null,null,null,null,null,null,null,null,null,50000,50000]
[null,null,null,null,null,null,null,null,null,50000,50000]
[null,null,null,null,null,null,null,null,null,50000,50000]
[null,null,null,null,null,null,null,null,null,50000,50000]
[null,null,null,null,null,null,null,null,null,50000,50000]
[null,null,null,null,null,null,null,null,null,50000,50000]
[null,null,null,null,null,null,null,null,null,50000,50000]
[null,null,null,null,null,null,null,null,null,50000,50000]
[null,null,null,null,null,null,null,null,null,50000,50000]
[null,null,null,null,null,null,null,null,null,50000,50000]
[null,null,null,null,null,null,null,null,null,50000,50000]
[null,null,null,null,null,null,null,null,null,50000,50000]
[null,null,null,null,null,null,null,null,null,50000,50000]
[null,null,null,null,null,null,null,null,null,50000,50000]
[null,null,null,null,null,null,null,null,null,50000,50000]
[null,null,null,null,null,null,null,null,null,50000,50000]
[null,null,null,null,null,null,null,null,null,50000,50000]
[null,null,null,null,null,null,null,null,null,50000,50000]
[null,null,null,null,null,null,null,null,null,50000,50000]
[null,null,null,null,null,null,null,null,null,50000,50000]
[null,null,null,null,null,null,null,null,null,50000,50000]
[null,null,null,null,null,null,null,null,null,50000,50000]
[null,null,null,null,null,null,null,null,null,50000,50000]
[null,null,null,null,null,null,null,null,null,50000,50000]
[null,null,null,null,null,null,null,null,null,50000,50000]
[null,null,null,null,null,null,null,null,null,50000,50000]
[null,null,null,null,null,null,null,null,null,50000,50000]
[null,null,null,null,null,null,null,null,null,{"$f":"SUM($J$1-I970)","v":50000},{"$f":"J970","v":50000}]
[null,null,null,null,null,null,null,null,null,50000,50000]
[null,null,null,null,null,null,null,null,null,50000,50000]
[null,null,null,null,null,null,null,null,null,50000,50000]
[null,null,null,null,null,null,null,null,null,50000,50000]
[null,null,null,null,null,null,null,null,null,50000,50000]
[null,null,null,null,null,null,null,null,null,50000,50000]
[null,null,null,null,null,null,null,null,null,50000,50000]
[null,null,null,null,null,null,null,null,null,50000,50000]
[null,null,null,null,null,null,null,null,null,50000,50000]
[null,null,null,null,null,null,null,null,null,50000,50000]
[null,null,null,null,null,null,null,null,null,50000,50000]
[null,null,null,null,null,null,null,null,null,50000,50000]
[null,null,null,null,null,null,null,null,null,50000,50000]
[null,null,null,null,null,null,null,null,null,50000,50000]
[null,null,null,null,null,null,null,null,null,50000,50000]
[null,null,null,null,null,null,null,null,null,50000,50000]
[null,null,null,null,null,null,null,null,null,50000,50000]
[null,null,null,null,null,null,null,null,null,50000,50000]
[null,null,null,null,null,null,null,null,null,50000,50000]
[null,null,null,null,null,null,null,null,null,50000,50000]
[null,null,null,null,null,null,null,null,null,50000,50000]
[null,null,null,null,null,null,null,null,null,50000,50000]
[null,null,null,null,null,null,null,null,null,50000,50000]
[null,null,null,null,null,null,null,null,null,50000,50000]
[null,null,null,null,null,null,null,null,null,50000,50000]
[null,null,null,null,null,null,null,null,null,50000,50000]
[null,null,null,null,null,null,null,null,null,50000,50000]
[null,null,null,null,null,null,null,null,null,50000,50000]
[null,null,null,null,null,null,null,null,null,50000,50000]
[null,null,null,null,null,null,null,null,null,50000,50000]
[null,null,null,null,null,null,null,null,null,50000,50000]
[null,null,null,null,null,null,null,null,null,50000,50000]
[null,null,null,null,null,null,null,null,null,50000,50000]

{"sheet":"علاج الأسنان","index":1,"n_rows":1003,"n_cols":28,"rows_kept":1003,"cut":false,"hidden":false,"merged":[[0,1,6,2],[1,4,1,6],[3,4,3,6]]}
[null,null,null,null,null,null,null,null,null,null,5000,null,"6",{"$f":"kh_ShowImage(M1,B1,108,108)","v":true},null,null,null,null,null,null,null,null,null,null,1]
[null,null,null,null,"اسم الشركة",null,null,null,null,null,null,null,null,null,null,null,null,null,null,null,null,null,null,null,2]
[null,null,null,null,null,null,null,null,null,null,null,null,null,null,null,null,null,null,null,null,null,null,null,null,3]
[null,null,null,null,"تقرير إجمالى عن جميع حالات الأسنان",null,null,null,null,null,null,null,null,null,null,null,null,null,null,null,null,null,null,null,4]
[null,null,null,null,null,null,null,null,null,null,null,null,null,null,null,null,null,null,null,null,null,null,null,null,5]
[null,null,null,null,null,null,null,null,null,null,null,null,null,null,null,null,null,null,null,null,null,null,null,null,6,null,null,"الموظف نفسه"]
[null,null,null,null,null,null,null,null,null,null,null,null,null,null,null,null,null,null,null,null,null,null,null,null,7,null,null,"الأب"]
[null,"م","التاريخ","اسم الموظف","اسم المريض","صله القرابه","رقم الملخص","تشخيص الحاله المرضية","ملاحظات","القيمة المصروفة للعلاج","الرصيد","القيمة المتبقية ",null,null,null,null,null,null,null,null,null,null,null,null,8,null,null,"الأم"]
[null,1,"2015-12-14",null,null,null,null,null,null,null,{"$f":"SUM($K$1-I9)","v":5000},{"$f":"K9","v":5000},null,null,null,null,null,null,null,null,null,null,null,null,9,null,null,"الأبن"]
[null,2,null,null,null,null,null,null,null,null,{"$f":"SUM($K$1-I10)","v":5000},{"$f":"K10","v":5000},null,null,null,null,null,null,null,null,null,null,null,null,10,null,null,"الأبنه"]
[null,3,null,null,null,null,null,null,null,null,5000,5000,null,null,null,null,null,null,null,null,null,null,null,null,null,null,null,"الأخ"]
[null,4,null,null,null,null,null,null,null,null,5000,5000,null,null,null,null,null,null,null,null,null,null,null,null,null,null,null,"الأخت"]
[null,5,null,null,null,null,null,null,null,null,5000,5000,null,null,null,null,null,null,null,null,null,null,null,null,null,null,null,"الزوجه"]
[null,6,null,null,null,null,null,null,null,null,5000,5000,null,null,null,null,null,null,null,null,null,null,null,null,null,null,null,"الوالد"]
[null,7,null,null,null,null,null,null,null,null,5000,5000,null,null,null,null,null,null,null,null,null,null,null,null,null,null,null,"الوالدة"]
[null,8,null,null,null,null,null,null,null,null,5000,5000]
[null,9,null,null,null,null,null,null,null,null,5000,5000]
[null,10,null,null,null,null,null,null,null,null,5000,5000]
[null,11,null,null,null,null,null,null,null,null,5000,5000]
[null,12,null,null,null,null,null,null,null,null,5000,5000]
[null,13,null,null,null,null,null,null,null,null,5000,5000]
[null,14,null,null,null,null,null,null,null,null,5000,5000]
[null,15,null,null,null,null,null,null,null,null,5000,5000]
[null,16,null,null,null,null,null,null,null,null,5000,5000]
[null,17,null,null,null,null,null,null,null,null,5000,5000]
[null,18,null,null,null,null,null,null,null,null,5000,5000]
[null,19,null,null,null,null,null,null,null,null,5000,5000]
[null,20,null,null,null,null,null,null,null,null,5000,5000]
[null,21,null,null,null,null,null,null,null,null,5000,5000]
[null,22,null,null,null,null,null,null,null,null,5000,5000]
[null,23,null,null,null,null,null,null,null,null,5000,5000]
[null,24,null,null,null,null,null,null,null,null,5000,5000]
[null,25,null,null,null,null,null,null,null,null,5000,5000]
[null,26,null,null,null,null,null,null,null,null,5000,5000]
[null,27,null,null,null,null,null,null,null,null,5000,5000]
[null,28,null,null,null,null,null,null,null,null,5000,5000]
[null,29,null,null,null,null,null,null,null,null,5000,5000]
[null,30,null,null,null,null,null,null,null,null,5000,5000]
[null,31,null,null,null,null,null,null,null,null,5000,5000]
[null,32,null,null,null,null,null,null,null,null,5000,5000]
[null,33,null,null,null,null,null,null,null,null,5000,5000]
[null,34,null,null,null,null,null,null,null,null,5000,5000]
[null,35,null,null,null,null,null,null,null,null,5000,5000]
[null,36,null,null,null,null,null,null,null,null,5000,5000]
[null,37,null,null,null,null,null,null,null,null,5000,5000]
[null,38,null,null,null,null,null,null,null,null,5000,5000]
[null,39,null,null,null,null,null,null,null,null,5000,5000]
[null,40,null,null,null,null,null,null,null,null,5000,5000]
[null,41,null,null,null,null,null,null,null,null,5000,5000]
[null,42,null,null,null,null,null,null,null,null,5000,5000]
[null,43,null,null,null,null,null,null,null,null,5000,5000]
[null,44,null,null,null,null,null,null,null,null,5000,5000]
[null,45,null,null,null,null,null,null,null,null,5000,5000]
[null,46,null,null,null,null,null,null,null,null,5000,5000]
[null,47,null,null,null,null,null,null,null,null,5000,5000]
[null,48,null,null,null,null,null,null,null,null,5000,5000]
[null,49,null,null,null,null,null,null,null,null,5000,5000]
[null,50,null,null,null,null,null,null,null,null,5000,5000]
[null,51,null,null,null,null,null,null,null,null,5000,5000]
[null,52,null,null,null,null,null,null,null,null,5000,5000]
[null,53,null,null,null,null,null,null,null,null,5000,5000]
[null,54,null,null,null,null,null,null,null,null,5000,5000]
[null,55,null,null,null,null,null,null,null,null,5000,5000]
[null,56,null,null,null,null,null,null,null,null,5000,5000]
[null,57,null,null,null,null,null,null,null,null,5000,5000]
[null,58,null,null,null,null,null,null,null,null,5000,5000]
[null,59,null,null,null,null,null,null,null,null,5000,5000]
[null,60,null,null,null,null,null,null,null,null,5000,5000]
[null,61,null,null,null,null,null,null,null,null,5000,5000]
[null,62,null,null,null,null,null,null,null,null,5000,5000]
[null,63,null,null,null,null,null,null,null,null,5000,5000]
[null,64,null,null,null,null,null,null,null,null,5000,5000]
[null,65,null,null,null,null,null,null,null,null,5000,5000]
[null,66,null,null,null,null,null,null,null,null,{"$f":"SUM($K$1-I74)","v":5000},{"$f":"K74","v":5000}]
[null,67,null,null,null,null,null,null,null,null,5000,5000]
[null,68,null,null,null,null,null,null,null,null,5000,5000]
[null,69,null,null,null,null,null,null,null,null,5000,5000]
[null,70,null,null,null,null,null,null,null,null,5000,5000]
[null,71,null,null,null,null,null,null,null,null,5000,5000]
[null,72,null,null,null,null,null,null,null,null,5000,5000]
[null,73,null,null,null,null,null,null,null,null,5000,5000]
[null,74,null,null,null,null,null,null,null,null,5000,5000]
[null,75,null,null,null,null,null,null,null,null,5000,5000]
[null,76,null,null,null,null,null,null,null,null,5000,5000]
[null,77,null,null,null,null,null,null,null,null,5000,5000]
[null,78,null,null,null,null,null,null,null,null,5000,5000]
[null,79,null,null,null,null,null,null,null,null,5000,5000]
[null,80,null,null,null,null,null,null,null,null,5000,5000]
[null,81,null,null,null,null,null,null,null,null,5000,5000]
[null,82,null,null,null,null,null,null,null,null,5000,5000]
[null,83,null,null,null,null,null,null,null,null,5000,5000]
[null,84,null,null,null,null,null,null,null,null,5000,5000]
[null,85,null,null,null,null,null,null,null,null,5000,5000]
[null,86,null,null,null,null,null,null,null,null,5000,5000]
[null,87,null,null,null,null,null,null,null,null,5000,5000]
[null,88,null,null,null,null,null,null,null,null,5000,5000]
[null,89,null,null,null,null,null,null,null,null,5000,5000]
[null,90,null,null,null,null,null,null,null,null,5000,5000]
[null,91,null,null,null,null,null,null,null,null,5000,5000]
[null,92,null,null,null,null,null,null,null,null,5000,5000]
[null,93,null,null,null,null,null,null,null,null,5000,5000]
[null,94,null,null,null,null,null,null,null,null,5000,5000]
[null,95,null,null,null,null,null,null,null,null,5000,5000]
[null,96,null,null,null,null,null,null,null,null,5000,5000]
[null,97,null,null,null,null,null,null,null,null,5000,5000]
[null,98,null,null,null,null,null,null,null,null,5000,5000]
[null,99,null,null,null,null,null,null,null,null,5000,5000]
[null,100,null,null,null,null,null,null,null,null,5000,5000]
[null,null,null,null,null,null,null,null,null,null,5000,5000]
[null,null,null,null,null,null,null,null,null,null,5000,5000]
[null,null,null,null,null,null,null,null,null,null,5000,5000]
[null,null,null,null,null,null,null,null,null,null,5000,5000]
[null,null,null,null,null,null,null,null,null,null,5000,5000]
[null,null,null,null,null,null,null,null,null,null,5000,5000]
[null,null,null,null,null,null,null,null,null,null,5000,5000]
[null,null,null,null,null,null,null,null,null,null,5000,5000]
[null,null,null,null,null,null,null,null,null,null,5000,5000]
[null,null,null,null,null,null,null,null,null,null,5000,5000]
[null,null,null,null,null,null,null,null,null,null,5000,5000]
[null,null,null,null,null,null,null,null,null,null,5000,5000]
[null,null,null,null,null,null,null,null,null,null,5000,5000]
[null,null,null,null,null,null,null,null,null,null,5000,5000]
[null,null,null,null,null,null,null,null,null,null,5000,5000]
[null,null,null,null,null,null,null,null,null,null,5000,5000]
[null,null,null,null,null,null,null,null,null,null,5000,5000]
[null,null,null,null,null,null,null,null,null,null,5000,5000]
[null,null,null,null,null,null,null,null,null,null,5000,5000]
[null,null,null,null,null,null,null,null,null,null,5000,5000]
[null,null,null,null,null,null,null,null,null,null,5000,5000]
[null,null,null,null,null,null,null,null,null,null,5000,5000]
[null,null,null,null,null,null,null,null,null,null,5000,5000]
[null,null,null,null,null,null,null,null,null,null,5000,5000]
[null,null,null,null,null,null,null,null,null,null,5000,5000]
[null,null,null,null,null,null,null,null,null,null,5000,5000]
[null,null,null,null,null,null,null,null,null,null,5000,5000]
[null,null,null,null,null,null,null,null,null,null,5000,5000]
[null,null,null,null,null,null,null,null,null,null,5000,5000]
[null,null,null,null,null,null,null,null,null,null,{"$f":"SUM($K$1-I138)","v":5000},{"$f":"K138","v":5000}]
[null,null,null,null,null,null,null,null,null,null,5000,5000]
[null,null,null,null,null,null,null,null,null,null,5000,5000]
[null,null,null,null,null,null,null,null,null,null,5000,5000]
[null,null,null,null,null,null,null,null,null,null,5000,5000]
[null,null,null,null,null,null,null,null,null,null,5000,5000]
[null,null,null,null,null,null,null,null,null,null,5000,5000]
[null,null,null,null,null,null,null,null,null,null,5000,5000]
[null,null,null,null,null,null,null,null,null,null,5000,5000]
[null,null,null,null,null,null,null,null,null,null,5000,5000]
[null,null,null,null,null,null,null,null,null,null,5000,5000]
[null,null,null,null,null,null,null,null,null,null,5000,5000]
[null,null,null,null,null,null,null,null,null,null,5000,5000]
[null,null,null,null,null,null,null,null,null,null,5000,5000]
[null,null,null,null,null,null,null,null,null,null,5000,5000]
[null,null,null,null,null,null,null,null,null,null,5000,5000]
[null,null,null,null,null,null,null,null,null,null,5000,5000]
[null,null,null,null,null,null,null,null,null,null,5000,5000]
[null,null,null,null,null,null,null,null,null,null,5000,5000]
[null,null,null,null,null,null,null,null,null,null,5000,5000]
[null,null,null,null,null,null,null,null,null,null,5000,5000]
[null,null,null,null,null,null,null,null,null,null,5000,5000]
[null,null,null,null,null,null,null,null,null,null,5000,5000]
[null,null,null,null,null,null,null,null,null,null,5000,5000]
[null,null,null,null,null,null,null,null,null,null,5000,5000]
[null,null,null,null,null,null,null,null,null,null,5000,5000]
[null,null,null,null,null,null,null,null,null,null,5000,5000]
[null,null,null,null,null,null,null,null,null,null,5000,5000]
[null,null,null,null,null,null,null,null,null,null,5000,5000]
[null,null,null,null,null,null,null,null,null,null,5000,5000]
[null,null,null,null,null,null,null,null,null,null,5000,5000]
[null,null,null,null,null,null,null,null,null,null,5000,5000]
[null,null,null,null,null,null,null,null,null,null,5000,5000]
[null,null,null,null,null,null,null,null,null,null,5000,5000]
[null,null,null,null,null,null,null,null,null,null,5000,5000]
[null,null,null,null,null,null,null,null,null,null,5000,5000]
[null,null,null,null,null,null,null,null,null,null,5000,5000]
[null,null,null,null,null,null,null,null,null,null,5000,5000]
[null,null,null,null,null,null,null,null,null,null,5000,5000]
[null,null,null,null,null,null,null,null,null,null,5000,5000]
[null,null,null,null,null,null,null,null,null,null,5000,5000]
[null,null,null,null,null,null,null,null,null,null,5000,5000]
[null,null,null,null,null,null,null,null,null,null,5000,5000]
[null,null,null,null,null,null,null,null,null,null,5000,5000]
[null,null,null,null,null,null,null,null,null,null,5000,5000]
[null,null,null,null,null,null,null,null,null,null,5000,5000]
[null,null,null,null,null,null,null,null,null,null,5000,5000]
[null,null,null,null,null,null,null,null,null,null,5000,5000]
[null,null,null,null,null,null,null,null,null,null,5000,5000]
[null,null,null,null,null,null,null,null,null,null,5000,5000]
[null,null,null,null,null,null,null,null,null,null,5000,5000]
[null,null,null,null,null,null,null,null,null,null,5000,5000]
[null,null,null,null,null,null,null,null,null,null,5000,5000]
[null,null,null,null,null,null,null,null,null,null,5000,5000]
[null,null,null,null,null,null,null,null,null,null,5000,5000]
[null,null,null,null,null,null,null,null,null,null,5000,5000]
[null,null,null,null,null,null,null,null,null,null,5000,5000]
[null,null,null,null,null,null,null,null,null,null,5000,5000]
[null,null,null,null,null,null,null,null,null,null,5000,5000]
[null,null,null,null,null,null,null,null,null,null,5000,5000]
[null,null,null,null,null,null,null,null,null,null,5000,5000]
[null,null,null,null,null,null,null,null,null,null,5000,5000]
[null,null,null,null,null,null,null,null,null,null,5000,5000]
[null,null,null,null,null,null,null,null,null,null,5000,5000]
[null,null,null,null,null,null,null,null,null,null,{"$f":"SUM($K$1-I202)","v":5000},{"$f":"K202","v":5000}]
[null,null,null,null,null,null,null,null,null,null,5000,5000]
[null,null,null,null,null,null,null,null,null,null,5000,5000]
[null,null,null,null,null,null,null,null,null,null,5000,5000]
[null,null,null,null,null,null,null,null,null,null,5000,5000]
[null,null,null,null,null,null,null,null,null,null,5000,5000]
[null,null,null,null,null,null,null,null,null,null,5000,5000]
[null,null,null,null,null,null,null,null,null,null,5000,5000]
[null,null,null,null,null,null,null,null,null,null,5000,5000]
[null,null,null,null,null,null,null,null,null,null,5000,5000]
[null,null,null,null,null,null,null,null,null,null,5000,5000]
[null,null,null,null,null,null,null,null,null,null,5000,5000]
[null,null,null,null,null,null,null,null,null,null,5000,5000]
[null,null,null,null,null,null,null,null,null,null,5000,5000]
[null,null,null,null,null,null,null,null,null,null,5000,5000]
[null,null,null,null,null,null,null,null,null,null,5000,5000]
[null,null,null,null,null,null,null,null,null,null,5000,5000]
[null,null,null,null,null,null,null,null,null,null,5000,5000]
[null,null,null,null,null,null,null,null,null,null,5000,5000]
[null,null,null,null,null,null,null,null,null,null,5000,5000]
[null,null,null,null,null,null,null,null,null,null,5000,5000]
[null,null,null,null,null,null,null,null,null,null,5000,5000]
[null,null,null,null,null,null,null,null,null,null,5000,5000]
[null,null,null,null,null,null,null,null,null,null,5000,5000]
[null,null,null,null,null,null,null,null,null,null,5000,5000]
[null,null,null,null,null,null,null,null,null,null,5000,5000]
[null,null,null,null,null,null,null,null,null,null,5000,5000]
[null,null,null,null,null,null,null,null,null,null,5000,5000]
[null,null,null,null,null,null,null,null,null,null,5000,5000]
[null,null,null,null,null,null,null,null,null,null,5000,5000]
[null,null,null,null,null,null,null,null,null,null,5000,5000]
[null,null,null,null,null,null,null,null,null,null,5000,5000]
[null,null,null,null,null,null,null,null,null,null,5000,5000]
[null,null,null,null,null,null,null,null,null,null,5000,5000]
[null,null,null,null,null,null,null,null,null,null,5000,5000]
[null,null,null,null,null,null,null,null,null,null,5000,5000]
[null,null,null,null,null,null,null,null,null,null,5000,5000]
[null,null,null,null,null,null,null,null,null,null,5000,5000]
[null,null,null,null,null,null,null,null,null,null,5000,5000]
[null,null,null,null,null,null,null,null,null,null,5000,5000]
[null,null,null,null,null,null,null,null,null,null,5000,5000]
[null,null,null,null,null,null,null,null,null,null,5000,5000]
[null,null,null,null,null,null,null,null,null,null,5000,5000]
[null,null,null,null,null,null,null,null,null,null,5000,5000]
[null,null,null,null,null,null,null,null,null,null,5000,5000]
[null,null,null,null,null,null,null,null,null,null,5000,5000]
[null,null,null,null,null,null,null,null,null,null,5000,5000]
[null,null,null,null,null,null,null,null,null,null,5000,5000]
[null,null,null,null,null,null,null,null,null,null,5000,5000]
[null,null,null,null,null,null,null,null,null,null,5000,5000]
[null,null,null,null,null,null,null,null,null,null,5000,5000]
[null,null,null,null,null,null,null,null,null,null,5000,5000]
[null,null,null,null,null,null,null,null,null,null,5000,5000]
[null,null,null,null,null,null,null,null,null,null,5000,5000]
[null,null,null,null,null,null,null,null,null,null,5000,5000]
[null,null,null,null,null,null,null,null,null,null,5000,5000]
[null,null,null,null,null,null,null,null,null,null,5000,5000]
[null,null,null,null,null,null,null,null,null,null,5000,5000]
[null,null,null,null,null,null,null,null,null,null,5000,5000]
[null,null,null,null,null,null,null,null,null,null,5000,5000]
[null,null,null,null,null,null,null,null,null,null,5000,5000]
[null,null,null,null,null,null,null,null,null,null,5000,5000]
[null,null,null,null,null,null,null,null,null,null,5000,5000]
[null,null,null,null,null,null,null,null,null,null,5000,5000]
[null,null,null,null,null,null,null,null,null,null,{"$f":"SUM($K$1-I266)","v":5000},{"$f":"K266","v":5000}]
[null,null,null,null,null,null,null,null,null,null,5000,5000]
[null,null,null,null,null,null,null,null,null,null,5000,5000]
[null,null,null,null,null,null,null,null,null,null,5000,5000]
[null,null,null,null,null,null,null,null,null,null,5000,5000]
[null,null,null,null,null,null,null,null,null,null,5000,5000]
[null,null,null,null,null,null,null,null,null,null,5000,5000]
[null,null,null,null,null,null,null,null,null,null,5000,5000]
[null,null,null,null,null,null,null,null,null,null,5000,5000]
[null,null,null,null,null,null,null,null,null,null,5000,5000]
[null,null,null,null,null,null,null,null,null,null,5000,5000]
[null,null,null,null,null,null,null,null,null,null,5000,5000]
[null,null,null,null,null,null,null,null,null,null,5000,5000]
[null,null,null,null,null,null,null,null,null,null,5000,5000]
[null,null,null,null,null,null,null,null,null,null,5000,5000]
[null,null,null,null,null,null,null,null,null,null,5000,5000]
[null,null,null,null,null,null,null,null,null,null,5000,5000]
[null,null,null,null,null,null,null,null,null,null,5000,5000]
[null,null,null,null,null,null,null,null,null,null,5000,5000]
[null,null,null,null,null,null,null,null,null,null,5000,5000]
[null,null,null,null,null,null,null,null,null,null,5000,5000]
[null,null,null,null,null,null,null,null,null,null,5000,5000]
[null,null,null,null,null,null,null,null,null,null,5000,5000]
[null,null,null,null,null,null,null,null,null,null,5000,5000]
[null,null,null,null,null,null,null,null,null,null,5000,5000]
[null,null,null,null,null,null,null,null,null,null,5000,5000]
[null,null,null,null,null,null,null,null,null,null,5000,5000]
[null,null,null,null,null,null,null,null,null,null,5000,5000]
[null,null,null,null,null,null,null,null,null,null,5000,5000]
[null,null,null,null,null,null,null,null,null,null,5000,5000]
[null,null,null,null,null,null,null,null,null,null,5000,5000]
[null,null,null,null,null,null,null,null,null,null,5000,5000]
[null,null,null,null,null,null,null,null,null,null,5000,5000]
[null,null,null,null,null,null,null,null,null,null,5000,5000]
[null,null,null,null,null,null,null,null,null,null,5000,5000]
[null,null,null,null,null,null,null,null,null,null,5000,5000]
[null,null,null,null,null,null,null,null,null,null,5000,5000]
[null,null,null,null,null,null,null,null,null,null,5000,5000]
[null,null,null,null,null,null,null,null,null,null,5000,5000]
[null,null,null,null,null,null,null,null,null,null,5000,5000]
[null,null,null,null,null,null,null,null,null,null,5000,5000]
[null,null,null,null,null,null,null,null,null,null,5000,5000]
[null,null,null,null,null,null,null,null,null,null,5000,5000]
[null,null,null,null,null,null,null,null,null,null,5000,5000]
[null,null,null,null,null,null,null,null,null,null,5000,5000]
[null,null,null,null,null,null,null,null,null,null,5000,5000]
[null,null,null,null,null,null,null,null,null,null,5000,5000]
[null,null,null,null,null,null,null,null,null,null,5000,5000]
[null,null,null,null,null,null,null,null,null,null,5000,5000]
[null,null,null,null,null,null,null,null,null,null,5000,5000]
[null,null,null,null,null,null,null,null,null,null,5000,5000]
[null,null,null,null,null,null,null,null,null,null,5000,5000]
[null,null,null,null,null,null,null,null,null,null,5000,5000]
[null,null,null,null,null,null,null,null,null,null,5000,5000]
[null,null,null,null,null,null,null,null,null,null,5000,5000]
[null,null,null,null,null,null,null,null,null,null,5000,5000]
[null,null,null,null,null,null,null,null,null,null,5000,5000]
[null,null,null,null,null,null,null,null,null,null,5000,5000]
[null,null,null,null,null,null,null,null,null,null,5000,5000]
[null,null,null,null,null,null,null,null,null,null,5000,5000]
[null,null,null,null,null,null,null,null,null,null,5000,5000]
[null,null,null,null,null,null,null,null,null,null,5000,5000]
[null,null,null,null,null,null,null,null,null,null,5000,5000]
[null,null,null,null,null,null,null,null,null,null,5000,5000]
[null,null,null,null,null,null,null,null,null,null,{"$f":"SUM($K$1-I330)","v":5000},{"$f":"K330","v":5000}]
[null,null,null,null,null,null,null,null,null,null,5000,5000]
[null,null,null,null,null,null,null,null,null,null,5000,5000]
[null,null,null,null,null,null,null,null,null,null,5000,5000]
[null,null,null,null,null,null,null,null,null,null,5000,5000]
[null,null,null,null,null,null,null,null,null,null,5000,5000]
[null,null,null,null,null,null,null,null,null,null,5000,5000]
[null,null,null,null,null,null,null,null,null,null,5000,5000]
[null,null,null,null,null,null,null,null,null,null,5000,5000]
[null,null,null,null,null,null,null,null,null,null,5000,5000]
[null,null,null,null,null,null,null,null,null,null,5000,5000]
[null,null,null,null,null,null,null,null,null,null,5000,5000]
[null,null,null,null,null,null,null,null,null,null,5000,5000]
[null,null,null,null,null,null,null,null,null,null,5000,5000]
[null,null,null,null,null,null,null,null,null,null,5000,5000]
[null,null,null,null,null,null,null,null,null,null,5000,5000]
[null,null,null,null,null,null,null,null,null,null,5000,5000]
[null,null,null,null,null,null,null,null,null,null,5000,5000]
[null,null,null,null,null,null,null,null,null,null,5000,5000]
[null,null,null,null,null,null,null,null,null,null,5000,5000]
[null,null,null,null,null,null,null,null,null,null,5000,5000]
[null,null,null,null,null,null,null,null,null,null,5000,5000]
[null,null,null,null,null,null,null,null,null,null,5000,5000]
[null,null,null,null,null,null,null,null,null,null,5000,5000]
[null,null,null,null,null,null,null,null,null,null,5000,5000]
[null,null,null,null,null,null,null,null,null,null,5000,5000]
[null,null,null,null,null,null,null,null,null,null,5000,5000]
[null,null,null,null,null,null,null,null,null,null,5000,5000]
[null,null,null,null,null,null,null,null,null,null,5000,5000]
[null,null,null,null,null,null,null,null,null,null,5000,5000]
[null,null,null,null,null,null,null,null,null,null,5000,5000]
[null,null,null,null,null,null,null,null,null,null,5000,5000]
[null,null,null,null,null,null,null,null,null,null,5000,5000]
[null,null,null,null,null,null,null,null,null,null,5000,5000]
[null,null,null,null,null,null,null,null,null,null,5000,5000]
[null,null,null,null,null,null,null,null,null,null,5000,5000]
[null,null,null,null,null,null,null,null,null,null,5000,5000]
[null,null,null,null,null,null,null,null,null,null,5000,5000]
[null,null,null,null,null,null,null,null,null,null,5000,5000]
[null,null,null,null,null,null,null,null,null,null,5000,5000]
[null,null,null,null,null,null,null,null,null,null,5000,5000]
[null,null,null,null,null,null,null,null,null,null,5000,5000]
[null,null,null,null,null,null,null,null,null,null,5000,5000]
[null,null,null,null,null,null,null,null,null,null,5000,5000]
[null,null,null,null,null,null,null,null,null,null,5000,5000]
[null,null,null,null,null,null,null,null,null,null,5000,5000]
[null,null,null,null,null,null,null,null,null,null,5000,5000]
[null,null,null,null,null,null,null,null,null,null,5000,5000]
[null,null,null,null,null,null,null,null,null,null,5000,5000]
[null,null,null,null,null,null,null,null,null,null,5000,5000]
[null,null,null,null,null,null,null,null,null,null,5000,5000]
[null,null,null,null,null,null,null,null,null,null,5000,5000]
[null,null,null,null,null,null,null,null,null,null,5000,5000]
[null,null,null,null,null,null,null,null,null,null,5000,5000]
[null,null,null,null,null,null,null,null,null,null,5000,5000]
[null,null,null,null,null,null,null,null,null,null,5000,5000]
[null,null,null,null,null,null,null,null,null,null,5000,5000]
[null,null,null,null,null,null,null,null,null,null,5000,5000]
[null,null,null,null,null,null,null,null,null,null,5000,5000]
[null,null,null,null,null,null,null,null,null,null,5000,5000]
[null,null,null,null,null,null,null,null,null,null,5000,5000]
[null,null,null,null,null,null,null,null,null,null,5000,5000]
[null,null,null,null,null,null,null,null,null,null,5000,5000]
[null,null,null,null,null,null,null,null,null,null,5000,5000]
[null,null,null,null,null,null,null,null,null,null,{"$f":"SUM($K$1-I394)","v":5000},{"$f":"K394","v":5000}]
[null,null,null,null,null,null,null,null,null,null,5000,5000]
[null,null,null,null,null,null,null,null,null,null,5000,5000]
[null,null,null,null,null,null,null,null,null,null,5000,5000]
[null,null,null,null,null,null,null,null,null,null,5000,5000]
[null,null,null,null,null,null,null,null,null,null,5000,5000]
[null,null,null,null,null,null,null,null,null,null,5000,5000]
[null,null,null,null,null,null,null,null,null,null,5000,5000]
[null,null,null,null,null,null,null,null,null,null,5000,5000]
[null,null,null,null,null,null,null,null,null,null,5000,5000]
[null,null,null,null,null,null,null,null,null,null,5000,5000]
[null,null,null,null,null,null,null,null,null,null,5000,5000]
[null,null,null,null,null,null,null,null,null,null,5000,5000]
[null,null,null,null,null,null,null,null,null,null,5000,5000]
[null,null,null,null,null,null,null,null,null,null,5000,5000]
[null,null,null,null,null,null,null,null,null,null,5000,5000]
[null,null,null,null,null,null,null,null,null,null,5000,5000]
[null,null,null,null,null,null,null,null,null,null,5000,5000]
[null,null,null,null,null,null,null,null,null,null,5000,5000]
[null,null,null,null,null,null,null,null,null,null,5000,5000]
[null,null,null,null,null,null,null,null,null,null,5000,5000]
[null,null,null,null,null,null,null,null,null,null,5000,5000]
[null,null,null,null,null,null,null,null,null,null,5000,5000]
[null,null,null,null,null,null,null,null,null,null,5000,5000]
[null,null,null,null,null,null,null,null,null,null,5000,5000]
[null,null,null,null,null,null,null,null,null,null,5000,5000]
[null,null,null,null,null,null,null,null,null,null,5000,5000]
[null,null,null,null,null,null,null,null,null,null,5000,5000]
[null,null,null,null,null,null,null,null,null,null,5000,5000]
[null,null,null,null,null,null,null,null,null,null,5000,5000]
[null,null,null,null,null,null,null,null,null,null,5000,5000]
[null,null,null,null,null,null,null,null,null,null,5000,5000]
[null,null,null,null,null,null,null,null,null,null,5000,5000]
[null,null,null,null,null,null,null,null,null,null,5000,5000]
[null,null,null,null,null,null,null,null,null,null,5000,5000]
[null,null,null,null,null,null,null,null,null,null,5000,5000]
[null,null,null,null,null,null,null,null,null,null,5000,5000]
[null,null,null,null,null,null,null,null,null,null,5000,5000]
[null,null,null,null,null,null,null,null,null,null,5000,5000]
[null,null,null,null,null,null,null,null,null,null,5000,5000]
[null,null,null,null,null,null,null,null,null,null,5000,5000]
[null,null,null,null,null,null,null,null,null,null,5000,5000]
[null,null,null,null,null,null,null,null,null,null,5000,5000]
[null,null,null,null,null,null,null,null,null,null,5000,5000]
[null,null,null,null,null,null,null,null,null,null,5000,5000]
[null,null,null,null,null,null,null,null,null,null,5000,5000]
[null,null,null,null,null,null,null,null,null,null,5000,5000]
[null,null,null,null,null,null,null,null,null,null,5000,5000]
[null,null,null,null,null,null,null,null,null,null,5000,5000]
[null,null,null,null,null,null,null,null,null,null,5000,5000]
[null,null,null,null,null,null,null,null,null,null,5000,5000]
[null,null,null,null,null,null,null,null,null,null,5000,5000]
[null,null,null,null,null,null,null,null,null,null,5000,5000]
[null,null,null,null,null,null,null,null,null,null,5000,5000]
[null,null,null,null,null,null,null,null,null,null,5000,5000]
[null,null,null,null,null,null,null,null,null,null,5000,5000]
[null,null,null,null,null,null,null,null,null,null,5000,5000]
[null,null,null,null,null,null,null,null,null,null,5000,5000]
[null,null,null,null,null,null,null,null,null,null,5000,5000]
[null,null,null,null,null,null,null,null,null,null,5000,5000]
[null,null,null,null,null,null,null,null,null,null,5000,5000]
[null,null,null,null,null,null,null,null,null,null,5000,5000]
[null,null,null,null,null,null,null,null,null,null,5000,5000]
[null,null,null,null,null,null,null,null,null,null,5000,5000]
[null,null,null,null,null,null,null,null,null,null,{"$f":"SUM($K$1-I458)","v":5000},{"$f":"K458","v":5000}]
[null,null,null,null,null,null,null,null,null,null,5000,5000]
[null,null,null,null,null,null,null,null,null,null,5000,5000]
[null,null,null,null,null,null,null,null,null,null,5000,5000]
[null,null,null,null,null,null,null,null,null,null,5000,5000]
[null,null,null,null,null,null,null,null,null,null,5000,5000]
[null,null,null,null,null,null,null,null,null,null,5000,5000]
[null,null,null,null,null,null,null,null,null,null,5000,5000]
[null,null,null,null,null,null,null,null,null,null,5000,5000]
[null,null,null,null,null,null,null,null,null,null,5000,5000]
[null,null,null,null,null,null,null,null,null,null,5000,5000]
[null,null,null,null,null,null,null,null,null,null,5000,5000]
[null,null,null,null,null,null,null,null,null,null,5000,5000]
[null,null,null,null,null,null,null,null,null,null,5000,5000]
[null,null,null,null,null,null,null,null,null,null,5000,5000]
[null,null,null,null,null,null,null,null,null,null,5000,5000]
[null,null,null,null,null,null,null,null,null,null,5000,5000]
[null,null,null,null,null,null,null,null,null,null,5000,5000]
[null,null,null,null,null,null,null,null,null,null,5000,5000]
[null,null,null,null,null,null,null,null,null,null,5000,5000]
[null,null,null,null,null,null,null,null,null,null,5000,5000]
[null,null,null,null,null,null,null,null,null,null,5000,5000]
[null,null,null,null,null,null,null,null,null,null,5000,5000]
[null,null,null,null,null,null,null,null,null,null,5000,5000]
[null,null,null,null,null,null,null,null,null,null,5000,5000]
[null,null,null,null,null,null,null,null,null,null,5000,5000]
[null,null,null,null,null,null,null,null,null,null,5000,5000]
[null,null,null,null,null,null,null,null,null,null,5000,5000]
[null,null,null,null,null,null,null,null,null,null,5000,5000]
[null,null,null,null,null,null,null,null,null,null,5000,5000]
[null,null,null,null,null,null,null,null,null,null,5000,5000]
[null,null,null,null,null,null,null,null,null,null,5000,5000]
[null,null,null,null,null,null,null,null,null,null,5000,5000]
[null,null,null,null,null,null,null,null,null,null,5000,5000]
[null,null,null,null,null,null,null,null,null,null,5000,5000]
[null,null,null,null,null,null,null,null,null,null,5000,5000]
[null,null,null,null,null,null,null,null,null,null,5000,5000]
[null,null,null,null,null,null,null,null,null,null,5000,5000]
[null,null,null,null,null,null,null,null,null,null,5000,5000]
[null,null,null,null,null,null,null,null,null,null,5000,5000]
[null,null,null,null,null,null,null,null,null,null,5000,5000]
[null,null,null,null,null,null,null,null,null,null,5000,5000]
[null,null,null,null,null,null,null,null,null,null,5000,5000]
[null,null,null,null,null,null,null,null,null,null,5000,5000]
[null,null,null,null,null,null,null,null,null,null,5000,5000]
[null,null,null,null,null,null,null,null,null,null,5000,5000]
[null,null,null,null,null,null,null,null,null,null,5000,5000]
[null,null,null,null,null,null,null,null,null,null,5000,5000]
[null,null,null,null,null,null,null,null,null,null,5000,5000]
[null,null,null,null,null,null,null,null,null,null,5000,5000]
[null,null,null,null,null,null,null,null,null,null,5000,5000]
[null,null,null,null,null,null,null,null,null,null,5000,5000]
[null,null,null,null,null,null,null,null,null,null,5000,5000]
[null,null,null,null,null,null,null,null,null,null,5000,5000]
[null,null,null,null,null,null,null,null,null,null,5000,5000]
[null,null,null,null,null,null,null,null,null,null,5000,5000]
[null,null,null,null,null,null,null,null,null,null,5000,5000]
[null,null,null,null,null,null,null,null,null,null,5000,5000]
[null,null,null,null,null,null,null,null,null,null,5000,5000]
[null,null,null,null,null,null,null,null,null,null,5000,5000]
[null,null,null,null,null,null,null,null,null,null,5000,5000]
[null,null,null,null,null,null,null,null,null,null,5000,5000]
[null,null,null,null,null,null,null,null,null,null,5000,5000]
[null,null,null,null,null,null,null,null,null,null,5000,5000]
[null,null,null,null,null,null,null,null,null,null,{"$f":"SUM($K$1-I522)","v":5000},{"$f":"K522","v":5000}]
[null,null,null,null,null,null,null,null,null,null,5000,5000]
[null,null,null,null,null,null,null,null,null,null,5000,5000]
[null,null,null,null,null,null,null,null,null,null,5000,5000]
[null,null,null,null,null,null,null,null,null,null,5000,5000]
[null,null,null,null,null,null,null,null,null,null,5000,5000]
[null,null,null,null,null,null,null,null,null,null,5000,5000]
[null,null,null,null,null,null,null,null,null,null,5000,5000]
[null,null,null,null,null,null,null,null,null,null,5000,5000]
[null,null,null,null,null,null,null,null,null,null,5000,5000]
[null,null,null,null,null,null,null,null,null,null,5000,5000]
[null,null,null,null,null,null,null,null,null,null,5000,5000]
[null,null,null,null,null,null,null,null,null,null,5000,5000]
[null,null,null,null,null,null,null,null,null,null,5000,5000]
[null,null,null,null,null,null,null,null,null,null,5000,5000]
[null,null,null,null,null,null,null,null,null,null,5000,5000]
[null,null,null,null,null,null,null,null,null,null,5000,5000]
[null,null,null,null,null,null,null,null,null,null,5000,5000]
[null,null,null,null,null,null,null,null,null,null,5000,5000]
[null,null,null,null,null,null,null,null,null,null,5000,5000]
[null,null,null,null,null,null,null,null,null,null,5000,5000]
[null,null,null,null,null,null,null,null,null,null,5000,5000]
[null,null,null,null,null,null,null,null,null,null,5000,5000]
[null,null,null,null,null,null,null,null,null,null,5000,5000]
[null,null,null,null,null,null,null,null,null,null,5000,5000]
[null,null,null,null,null,null,null,null,null,null,5000,5000]
[null,null,null,null,null,null,null,null,null,null,5000,5000]
[null,null,null,null,null,null,null,null,null,null,5000,5000]
[null,null,null,null,null,null,null,null,null,null,5000,5000]
[null,null,null,null,null,null,null,null,null,null,5000,5000]
[null,null,null,null,null,null,null,null,null,null,5000,5000]
[null,null,null,null,null,null,null,null,null,null,5000,5000]
[null,null,null,null,null,null,null,null,null,null,5000,5000]
[null,null,null,null,null,null,null,null,null,null,5000,5000]
[null,null,null,null,null,null,null,null,null,null,5000,5000]
[null,null,null,null,null,null,null,null,null,null,5000,5000]
[null,null,null,null,null,null,null,null,null,null,5000,5000]
[null,null,null,null,null,null,null,null,null,null,5000,5000]
[null,null,null,null,null,null,null,null,null,null,5000,5000]
[null,null,null,null,null,null,null,null,null,null,5000,5000]
[null,null,null,null,null,null,null,null,null,null,5000,5000]
[null,null,null,null,null,null,null,null,null,null,5000,5000]
[null,null,null,null,null,null,null,null,null,null,5000,5000]
[null,null,null,null,null,null,null,null,null,null,5000,5000]
[null,null,null,null,null,null,null,null,null,null,5000,5000]
[null,null,null,null,null,null,null,null,null,null,5000,5000]
[null,null,null,null,null,null,null,null,null,null,5000,5000]
[null,null,null,null,null,null,null,null,null,null,5000,5000]
[null,null,null,null,null,null,null,null,null,null,5000,5000]
[null,null,null,null,null,null,null,null,null,null,5000,5000]
[null,null,null,null,null,null,null,null,null,null,5000,5000]
[null,null,null,null,null,null,null,null,null,null,5000,5000]
[null,null,null,null,null,null,null,null,null,null,5000,5000]
[null,null,null,null,null,null,null,null,null,null,5000,5000]
[null,null,null,null,null,null,null,null,null,null,5000,5000]
[null,null,null,null,null,null,null,null,null,null,5000,5000]
[null,null,null,null,null,null,null,null,null,null,5000,5000]
[null,null,null,null,null,null,null,null,null,null,5000,5000]
[null,null,null,null,null,null,null,null,null,null,5000,5000]
[null,null,null,null,null,null,null,null,null,null,5000,5000]
[null,null,null,null,null,null,null,null,null,null,5000,5000]
[null,null,null,null,null,null,null,null,null,null,5000,5000]
[null,null,null,null,null,null,null,null,null,null,5000,5000]
[null,null,null,null,null,null,null,null,null,null,5000,5000]
[null,null,null,null,null,null,null,null,null,null,{"$f":"SUM($K$1-I586)","v":5000},{"$f":"K586","v":5000}]
[null,null,null,null,null,null,null,null,null,null,5000,5000]
[null,null,null,null,null,null,null,null,null,null,5000,5000]
[null,null,null,null,null,null,null,null,null,null,5000,5000]
[null,null,null,null,null,null,null,null,null,null,5000,5000]
[null,null,null,null,null,null,null,null,null,null,5000,5000]
[null,null,null,null,null,null,null,null,null,null,5000,5000]
[null,null,null,null,null,null,null,null,null,null,5000,5000]
[null,null,null,null,null,null,null,null,null,null,5000,5000]
[null,null,null,null,null,null,null,null,null,null,5000,5000]
[null,null,null,null,null,null,null,null,null,null,5000,5000]
[null,null,null,null,null,null,null,null,null,null,5000,5000]
[null,null,null,null,null,null,null,null,null,null,5000,5000]
[null,null,null,null,null,null,null,null,null,null,5000,5000]
[null,null,null,null,null,null,null,null,null,null,5000,5000]
[null,null,null,null,null,null,null,null,null,null,5000,5000]
[null,null,null,null,null,null,null,null,null,null,5000,5000]
[null,null,null,null,null,null,null,null,null,null,5000,5000]
[null,null,null,null,null,null,null,null,null,null,5000,5000]
[null,null,null,null,null,null,null,null,null,null,5000,5000]
[null,null,null,null,null,null,null,null,null,null,5000,5000]
[null,null,null,null,null,null,null,null,null,null,5000,5000]
[null,null,null,null,null,null,null,null,null,null,5000,5000]
[null,null,null,null,null,null,null,null,null,null,5000,5000]
[null,null,null,null,null,null,null,null,null,null,5000,5000]
[null,null,null,null,null,null,null,null,null,null,5000,5000]
[null,null,null,null,null,null,null,null,null,null,5000,5000]
[null,null,null,null,null,null,null,null,null,null,5000,5000]
[null,null,null,null,null,null,null,null,null,null,5000,5000]
[null,null,null,null,null,null,null,null,null,null,5000,5000]
[null,null,null,null,null,null,null,null,null,null,5000,5000]
[null,null,null,null,null,null,null,null,null,null,5000,5000]
[null,null,null,null,null,null,null,null,null,null,5000,5000]
[null,null,null,null,null,null,null,null,null,null,5000,5000]
[null,null,null,null,null,null,null,null,null,null,5000,5000]
[null,null,null,null,null,null,null,null,null,null,5000,5000]
[null,null,null,null,null,null,null,null,null,null,5000,5000]
[null,null,null,null,null,null,null,null,null,null,5000,5000]
[null,null,null,null,null,null,null,null,null,null,5000,5000]
[null,null,null,null,null,null,null,null,null,null,5000,5000]
[null,null,null,null,null,null,null,null,null,null,5000,5000]
[null,null,null,null,null,null,null,null,null,null,5000,5000]
[null,null,null,null,null,null,null,null,null,null,5000,5000]
[null,null,null,null,null,null,null,null,null,null,5000,5000]
[null,null,null,null,null,null,null,null,null,null,5000,5000]
[null,null,null,null,null,null,null,null,null,null,5000,5000]
[null,null,null,null,null,null,null,null,null,null,5000,5000]
[null,null,null,null,null,null,null,null,null,null,5000,5000]
[null,null,null,null,null,null,null,null,null,null,5000,5000]
[null,null,null,null,null,null,null,null,null,null,5000,5000]
[null,null,null,null,null,null,null,null,null,null,5000,5000]
[null,null,null,null,null,null,null,null,null,null,5000,5000]
[null,null,null,null,null,null,null,null,null,null,5000,5000]
[null,null,null,null,null,null,null,null,null,null,5000,5000]
[null,null,null,null,null,null,null,null,null,null,5000,5000]
[null,null,null,null,null,null,null,null,null,null,5000,5000]
[null,null,null,null,null,null,null,null,null,null,5000,5000]
[null,null,null,null,null,null,null,null,null,null,5000,5000]
[null,null,null,null,null,null,null,null,null,null,5000,5000]
[null,null,null,null,null,null,null,null,null,null,5000,5000]
[null,null,null,null,null,null,null,null,null,null,5000,5000]
[null,null,null,null,null,null,null,null,null,null,5000,5000]
[null,null,null,null,null,null,null,null,null,null,5000,5000]
[null,null,null,null,null,null,null,null,null,null,5000,5000]
[null,null,null,null,null,null,null,null,null,null,{"$f":"SUM($K$1-I650)","v":5000},{"$f":"K650","v":5000}]
[null,null,null,null,null,null,null,null,null,null,5000,5000]
[null,null,null,null,null,null,null,null,null,null,5000,5000]
[null,null,null,null,null,null,null,null,null,null,5000,5000]
[null,null,null,null,null,null,null,null,null,null,5000,5000]
[null,null,null,null,null,null,null,null,null,null,5000,5000]
[null,null,null,null,null,null,null,null,null,null,5000,5000]
[null,null,null,null,null,null,null,null,null,null,5000,5000]
[null,null,null,null,null,null,null,null,null,null,5000,5000]
[null,null,null,null,null,null,null,null,null,null,5000,5000]
[null,null,null,null,null,null,null,null,null,null,5000,5000]
[null,null,null,null,null,null,null,null,null,null,5000,5000]
[null,null,null,null,null,null,null,null,null,null,5000,5000]
[null,null,null,null,null,null,null,null,null,null,5000,5000]
[null,null,null,null,null,null,null,null,null,null,5000,5000]
[null,null,null,null,null,null,null,null,null,null,5000,5000]
[null,null,null,null,null,null,null,null,null,null,5000,5000]
[null,null,null,null,null,null,null,null,null,null,5000,5000]
[null,null,null,null,null,null,null,null,null,null,5000,5000]
[null,null,null,null,null,null,null,null,null,null,5000,5000]
[null,null,null,null,null,null,null,null,null,null,5000,5000]
[null,null,null,null,null,null,null,null,null,null,5000,5000]
[null,null,null,null,null,null,null,null,null,null,5000,5000]
[null,null,null,null,null,null,null,null,null,null,5000,5000]
[null,null,null,null,null,null,null,null,null,null,5000,5000]
[null,null,null,null,null,null,null,null,null,null,5000,5000]
[null,null,null,null,null,null,null,null,null,null,5000,5000]
[null,null,null,null,null,null,null,null,null,null,5000,5000]
[null,null,null,null,null,null,null,null,null,null,5000,5000]
[null,null,null,null,null,null,null,null,null,null,5000,5000]
[null,null,null,null,null,null,null,null,null,null,5000,5000]
[null,null,null,null,null,null,null,null,null,null,5000,5000]
[null,null,null,null,null,null,null,null,null,null,5000,5000]
[null,null,null,null,null,null,null,null,null,null,5000,5000]
[null,null,null,null,null,null,null,null,null,null,5000,5000]
[null,null,null,null,null,null,null,null,null,null,5000,5000]
[null,null,null,null,null,null,null,null,null,null,5000,5000]
[null,null,null,null,null,null,null,null,null,null,5000,5000]
[null,null,null,null,null,null,null,null,null,null,5000,5000]
[null,null,null,null,null,null,null,null,null,null,5000,5000]
[null,null,null,null,null,null,null,null,null,null,5000,5000]
[null,null,null,null,null,null,null,null,null,null,5000,5000]
[null,null,null,null,null,null,null,null,null,null,5000,5000]
[null,null,null,null,null,null,null,null,null,null,5000,5000]
[null,null,null,null,null,null,null,null,null,null,5000,5000]
[null,null,null,null,null,null,null,null,null,null,5000,5000]
[null,null,null,null,null,null,null,null,null,null,5000,5000]
[null,null,null,null,null,null,null,null,null,null,5000,5000]
[null,null,null,null,null,null,null,null,null,null,5000,5000]
[null,null,null,null,null,null,null,null,null,null,5000,5000]
[null,null,null,null,null,null,null,null,null,null,5000,5000]
[null,null,null,null,null,null,null,null,null,null,5000,5000]
[null,null,null,null,null,null,null,null,null,null,5000,5000]
[null,null,null,null,null,null,null,null,null,null,5000,5000]
[null,null,null,null,null,null,null,null,null,null,5000,5000]
[null,null,null,null,null,null,null,null,null,null,5000,5000]
[null,null,null,null,null,null,null,null,null,null,5000,5000]
[null,null,null,null,null,null,null,null,null,null,5000,5000]
[null,null,null,null,null,null,null,null,null,null,5000,5000]
[null,null,null,null,null,null,null,null,null,null,5000,5000]
[null,null,null,null,null,null,null,null,null,null,5000,5000]
[null,null,null,null,null,null,null,null,null,null,5000,5000]
[null,null,null,null,null,null,null,null,null,null,5000,5000]
[null,null,null,null,null,null,null,null,null,null,5000,5000]
[null,null,null,null,null,null,null,null,null,null,{"$f":"SUM($K$1-I714)","v":5000},{"$f":"K714","v":5000}]
[null,null,null,null,null,null,null,null,null,null,5000,5000]
[null,null,null,null,null,null,null,null,null,null,5000,5000]
[null,null,null,null,null,null,null,null,null,null,5000,5000]
[null,null,null,null,null,null,null,null,null,null,5000,5000]
[null,null,null,null,null,null,null,null,null,null,5000,5000]
[null,null,null,null,null,null,null,null,null,null,5000,5000]
[null,null,null,null,null,null,null,null,null,null,5000,5000]
[null,null,null,null,null,null,null,null,null,null,5000,5000]
[null,null,null,null,null,null,null,null,null,null,5000,5000]
[null,null,null,null,null,null,null,null,null,null,5000,5000]
[null,null,null,null,null,null,null,null,null,null,5000,5000]
[null,null,null,null,null,null,null,null,null,null,5000,5000]
[null,null,null,null,null,null,null,null,null,null,5000,5000]
[null,null,null,null,null,null,null,null,null,null,5000,5000]
[null,null,null,null,null,null,null,null,null,null,5000,5000]
[null,null,null,null,null,null,null,null,null,null,5000,5000]
[null,null,null,null,null,null,null,null,null,null,5000,5000]
[null,null,null,null,null,null,null,null,null,null,5000,5000]
[null,null,null,null,null,null,null,null,null,null,5000,5000]
[null,null,null,null,null,null,null,null,null,null,5000,5000]
[null,null,null,null,null,null,null,null,null,null,5000,5000]
[null,null,null,null,null,null,null,null,null,null,5000,5000]
[null,null,null,null,null,null,null,null,null,null,5000,5000]
[null,null,null,null,null,null,null,null,null,null,5000,5000]
[null,null,null,null,null,null,null,null,null,null,5000,5000]
[null,null,null,null,null,null,null,null,null,null,5000,5000]
[null,null,null,null,null,null,null,null,null,null,5000,5000]
[null,null,null,null,null,null,null,null,null,null,5000,5000]
[null,null,null,null,null,null,null,null,null,null,5000,5000]
[null,null,null,null,null,null,null,null,null,null,5000,5000]
[null,null,null,null,null,null,null,null,null,null,5000,5000]
[null,null,null,null,null,null,null,null,null,null,5000,5000]
[null,null,null,null,null,null,null,null,null,null,5000,5000]
[null,null,null,null,null,null,null,null,null,null,5000,5000]
[null,null,null,null,null,null,null,null,null,null,5000,5000]
[null,null,null,null,null,null,null,null,null,null,5000,5000]
[null,null,null,null,null,null,null,null,null,null,5000,5000]
[null,null,null,null,null,null,null,null,null,null,5000,5000]
[null,null,null,null,null,null,null,null,null,null,5000,5000]
[null,null,null,null,null,null,null,null,null,null,5000,5000]
[null,null,null,null,null,null,null,null,null,null,5000,5000]
[null,null,null,null,null,null,null,null,null,null,5000,5000]
[null,null,null,null,null,null,null,null,null,null,5000,5000]
[null,null,null,null,null,null,null,null,null,null,5000,5000]
[null,null,null,null,null,null,null,null,null,null,5000,5000]
[null,null,null,null,null,null,null,null,null,null,5000,5000]
[null,null,null,null,null,null,null,null,null,null,5000,5000]
[null,null,null,null,null,null,null,null,null,null,5000,5000]
[null,null,null,null,null,null,null,null,null,null,5000,5000]
[null,null,null,null,null,null,null,null,null,null,5000,5000]
[null,null,null,null,null,null,null,null,null,null,5000,5000]
[null,null,null,null,null,null,null,null,null,null,5000,5000]
[null,null,null,null,null,null,null,null,null,null,5000,5000]
[null,null,null,null,null,null,null,null,null,null,5000,5000]
[null,null,null,null,null,null,null,null,null,null,5000,5000]
[null,null,null,null,null,null,null,null,null,null,5000,5000]
[null,null,null,null,null,null,null,null,null,null,5000,5000]
[null,null,null,null,null,null,null,null,null,null,5000,5000]
[null,null,null,null,null,null,null,null,null,null,5000,5000]
[null,null,null,null,null,null,null,null,null,null,5000,5000]
[null,null,null,null,null,null,null,null,null,null,5000,5000]
[null,null,null,null,null,null,null,null,null,null,5000,5000]
[null,null,null,null,null,null,null,null,null,null,5000,5000]
[null,null,null,null,null,null,null,null,null,null,{"$f":"SUM($K$1-I778)","v":5000},{"$f":"K778","v":5000}]
[null,null,null,null,null,null,null,null,null,null,5000,5000]
[null,null,null,null,null,null,null,null,null,null,5000,5000]
[null,null,null,null,null,null,null,null,null,null,5000,5000]
[null,null,null,null,null,null,null,null,null,null,5000,5000]
[null,null,null,null,null,null,null,null,null,null,5000,5000]
[null,null,null,null,null,null,null,null,null,null,5000,5000]
[null,null,null,null,null,null,null,null,null,null,5000,5000]
[null,null,null,null,null,null,null,null,null,null,5000,5000]
[null,null,null,null,null,null,null,null,null,null,5000,5000]
[null,null,null,null,null,null,null,null,null,null,5000,5000]
[null,null,null,null,null,null,null,null,null,null,5000,5000]
[null,null,null,null,null,null,null,null,null,null,5000,5000]
[null,null,null,null,null,null,null,null,null,null,5000,5000]
[null,null,null,null,null,null,null,null,null,null,5000,5000]
[null,null,null,null,null,null,null,null,null,null,5000,5000]
[null,null,null,null,null,null,null,null,null,null,5000,5000]
[null,null,null,null,null,null,null,null,null,null,5000,5000]
[null,null,null,null,null,null,null,null,null,null,5000,5000]
[null,null,null,null,null,null,null,null,null,null,5000,5000]
[null,null,null,null,null,null,null,null,null,null,5000,5000]
[null,null,null,null,null,null,null,null,null,null,5000,5000]
[null,null,null,null,null,null,null,null,null,null,5000,5000]
[null,null,null,null,null,null,null,null,null,null,5000,5000]
[null,null,null,null,null,null,null,null,null,null,5000,5000]
[null,null,null,null,null,null,null,null,null,null,5000,5000]
[null,null,null,null,null,null,null,null,null,null,5000,5000]
[null,null,null,null,null,null,null,null,null,null,5000,5000]
[null,null,null,null,null,null,null,null,null,null,5000,5000]
[null,null,null,null,null,null,null,null,null,null,5000,5000]
[null,null,null,null,null,null,null,null,null,null,5000,5000]
[null,null,null,null,null,null,null,null,null,null,5000,5000]
[null,null,null,null,null,null,null,null,null,null,5000,5000]
[null,null,null,null,null,null,null,null,null,null,5000,5000]
[null,null,null,null,null,null,null,null,null,null,5000,5000]
[null,null,null,null,null,null,null,null,null,null,5000,5000]
[null,null,null,null,null,null,null,null,null,null,5000,5000]
[null,null,null,null,null,null,null,null,null,null,5000,5000]
[null,null,null,null,null,null,null,null,null,null,5000,5000]
[null,null,null,null,null,null,null,null,null,null,5000,5000]
[null,null,null,null,null,null,null,null,null,null,5000,5000]
[null,null,null,null,null,null,null,null,null,null,5000,5000]
[null,null,null,null,null,null,null,null,null,null,5000,5000]
[null,null,null,null,null,null,null,null,null,null,5000,5000]
[null,null,null,null,null,null,null,null,null,null,5000,5000]
[null,null,null,null,null,null,null,null,null,null,5000,5000]
[null,null,null,null,null,null,null,null,null,null,5000,5000]
[null,null,null,null,null,null,null,null,null,null,5000,5000]
[null,null,null,null,null,null,null,null,null,null,5000,5000]
[null,null,null,null,null,null,null,null,null,null,5000,5000]
[null,null,null,null,null,null,null,null,null,null,5000,5000]
[null,null,null,null,null,null,null,null,null,null,5000,5000]
[null,null,null,null,null,null,null,null,null,null,5000,5000]
[null,null,null,null,null,null,null,null,null,null,5000,5000]
[null,null,null,null,null,null,null,null,null,null,5000,5000]
[null,null,null,null,null,null,null,null,null,null,5000,5000]
[null,null,null,null,null,null,null,null,null,null,5000,5000]
[null,null,null,null,null,null,null,null,null,null,5000,5000]
[null,null,null,null,null,null,null,null,null,null,5000,5000]
[null,null,null,null,null,null,null,null,null,null,5000,5000]
[null,null,null,null,null,null,null,null,null,null,5000,5000]
[null,null,null,null,null,null,null,null,null,null,5000,5000]
[null,null,null,null,null,null,null,null,null,null,5000,5000]
[null,null,null,null,null,null,null,null,null,null,5000,5000]
[null,null,null,null,null,null,null,null,null,null,{"$f":"SUM($K$1-I842)","v":5000},{"$f":"K842","v":5000}]
[null,null,null,null,null,null,null,null,null,null,5000,5000]
[null,null,null,null,null,null,null,null,null,null,5000,5000]
[null,null,null,null,null,null,null,null,null,null,5000,5000]
[null,null,null,null,null,null,null,null,null,null,5000,5000]
[null,null,null,null,null,null,null,null,null,null,5000,5000]
[null,null,null,null,null,null,null,null,null,null,5000,5000]
[null,null,null,null,null,null,null,null,null,null,5000,5000]
[null,null,null,null,null,null,null,null,null,null,5000,5000]
[null,null,null,null,null,null,null,null,null,null,5000,5000]
[null,null,null,null,null,null,null,null,null,null,5000,5000]
[null,null,null,null,null,null,null,null,null,null,5000,5000]
[null,null,null,null,null,null,null,null,null,null,5000,5000]
[null,null,null,null,null,null,null,null,null,null,5000,5000]
[null,null,null,null,null,null,null,null,null,null,5000,5000]
[null,null,null,null,null,null,null,null,null,null,5000,5000]
[null,null,null,null,null,null,null,null,null,null,5000,5000]
[null,null,null,null,null,null,null,null,null,null,5000,5000]
[null,null,null,null,null,null,null,null,null,null,5000,5000]
[null,null,null,null,null,null,null,null,null,null,5000,5000]
[null,null,null,null,null,null,null,null,null,null,5000,5000]
[null,null,null,null,null,null,null,null,null,null,5000,5000]
[null,null,null,null,null,null,null,null,null,null,5000,5000]
[null,null,null,null,null,null,null,null,null,null,5000,5000]
[null,null,null,null,null,null,null,null,null,null,5000,5000]
[null,null,null,null,null,null,null,null,null,null,5000,5000]
[null,null,null,null,null,null,null,null,null,null,5000,5000]
[null,null,null,null,null,null,null,null,null,null,5000,5000]
[null,null,null,null,null,null,null,null,null,null,5000,5000]
[null,null,null,null,null,null,null,null,null,null,5000,5000]
[null,null,null,null,null,null,null,null,null,null,5000,5000]
[null,null,null,null,null,null,null,null,null,null,5000,5000]
[null,null,null,null,null,null,null,null,null,null,5000,5000]
[null,null,null,null,null,null,null,null,null,null,5000,5000]
[null,null,null,null,null,null,null,null,null,null,5000,5000]
[null,null,null,null,null,null,null,null,null,null,5000,5000]
[null,null,null,null,null,null,null,null,null,null,5000,5000]
[null,null,null,null,null,null,null,null,null,null,5000,5000]
[null,null,null,null,null,null,null,null,null,null,5000,5000]
[null,null,null,null,null,null,null,null,null,null,5000,5000]
[null,null,null,null,null,null,null,null,null,null,5000,5000]
[null,null,null,null,null,null,null,null,null,null,5000,5000]
[null,null,null,null,null,null,null,null,null,null,5000,5000]
[null,null,null,null,null,null,null,null,null,null,5000,5000]
[null,null,null,null,null,null,null,null,null,null,5000,5000]
[null,null,null,null,null,null,null,null,null,null,5000,5000]
[null,null,null,null,null,null,null,null,null,null,5000,5000]
[null,null,null,null,null,null,null,null,null,null,5000,5000]
[null,null,null,null,null,null,null,null,null,null,5000,5000]
[null,null,null,null,null,null,null,null,null,null,5000,5000]
[null,null,null,null,null,null,null,null,null,null,5000,5000]
[null,null,null,null,null,null,null,null,null,null,5000,5000]
[null,null,null,null,null,null,null,null,null,null,5000,5000]
[null,null,null,null,null,null,null,null,null,null,5000,5000]
[null,null,null,null,null,null,null,null,null,null,5000,5000]
[null,null,null,null,null,null,null,null,null,null,5000,5000]
[null,null,null,null,null,null,null,null,null,null,5000,5000]
[null,null,null,null,null,null,null,null,null,null,5000,5000]
[null,null,null,null,null,null,null,null,null,null,5000,5000]
[null,null,null,null,null,null,null,null,null,null,5000,5000]
[null,null,null,null,null,null,null,null,null,null,5000,5000]
[null,null,null,null,null,null,null,null,null,null,5000,5000]
[null,null,null,null,null,null,null,null,null,null,5000,5000]
[null,null,null,null,null,null,null,null,null,null,5000,5000]
[null,null,null,null,null,null,null,null,null,null,{"$f":"SUM($K$1-I906)","v":5000},{"$f":"K906","v":5000}]
[null,null,null,null,null,null,null,null,null,null,5000,5000]
[null,null,null,null,null,null,null,null,null,null,5000,5000]
[null,null,null,null,null,null,null,null,null,null,5000,5000]
[null,null,null,null,null,null,null,null,null,null,5000,5000]
[null,null,null,null,null,null,null,null,null,null,5000,5000]
[null,null,null,null,null,null,null,null,null,null,5000,5000]
[null,null,null,null,null,null,null,null,null,null,5000,5000]
[null,null,null,null,null,null,null,null,null,null,5000,5000]
[null,null,null,null,null,null,null,null,null,null,5000,5000]
[null,null,null,null,null,null,null,null,null,null,5000,5000]
[null,null,null,null,null,null,null,null,null,null,5000,5000]
[null,null,null,null,null,null,null,null,null,null,5000,5000]
[null,null,null,null,null,null,null,null,null,null,5000,5000]
[null,null,null,null,null,null,null,null,null,null,5000,5000]
[null,null,null,null,null,null,null,null,null,null,5000,5000]
[null,null,null,null,null,null,null,null,null,null,5000,5000]
[null,null,null,null,null,null,null,null,null,null,5000,5000]
[null,null,null,null,null,null,null,null,null,null,5000,5000]
[null,null,null,null,null,null,null,null,null,null,5000,5000]
[null,null,null,null,null,null,null,null,null,null,5000,5000]
[null,null,null,null,null,null,null,null,null,null,5000,5000]
[null,null,null,null,null,null,null,null,null,null,5000,5000]
[null,null,null,null,null,null,null,null,null,null,5000,5000]
[null,null,null,null,null,null,null,null,null,null,5000,5000]
[null,null,null,null,null,null,null,null,null,null,5000,5000]
[null,null,null,null,null,null,null,null,null,null,5000,5000]
[null,null,null,null,null,null,null,null,null,null,5000,5000]
[null,null,null,null,null,null,null,null,null,null,5000,5000]
[null,null,null,null,null,null,null,null,null,null,5000,5000]
[null,null,null,null,null,null,null,null,null,null,5000,5000]
[null,null,null,null,null,null,null,null,null,null,5000,5000]
[null,null,null,null,null,null,null,null,null,null,5000,5000]
[null,null,null,null,null,null,null,null,null,null,5000,5000]
[null,null,null,null,null,null,null,null,null,null,5000,5000]
[null,null,null,null,null,null,null,null,null,null,5000,5000]
[null,null,null,null,null,null,null,null,null,null,5000,5000]
[null,null,null,null,null,null,null,null,null,null,5000,5000]
[null,null,null,null,null,null,null,null,null,null,5000,5000]
[null,null,null,null,null,null,null,null,null,null,5000,5000]
[null,null,null,null,null,null,null,null,null,null,5000,5000]
[null,null,null,null,null,null,null,null,null,null,5000,5000]
[null,null,null,null,null,null,null,null,null,null,5000,5000]
[null,null,null,null,null,null,null,null,null,null,5000,5000]
[null,null,null,null,null,null,null,null,null,null,5000,5000]
[null,null,null,null,null,null,null,null,null,null,5000,5000]
[null,null,null,null,null,null,null,null,null,null,5000,5000]
[null,null,null,null,null,null,null,null,null,null,5000,5000]
[null,null,null,null,null,null,null,null,null,null,5000,5000]
[null,null,null,null,null,null,null,null,null,null,5000,5000]
[null,null,null,null,null,null,null,null,null,null,5000,5000]
[null,null,null,null,null,null,null,null,null,null,5000,5000]
[null,null,null,null,null,null,null,null,null,null,5000,5000]
[null,null,null,null,null,null,null,null,null,null,5000,5000]
[null,null,null,null,null,null,null,null,null,null,5000,5000]
[null,null,null,null,null,null,null,null,null,null,5000,5000]
[null,null,null,null,null,null,null,null,null,null,5000,5000]
[null,null,null,null,null,null,null,null,null,null,5000,5000]
[null,null,null,null,null,null,null,null,null,null,5000,5000]
[null,null,null,null,null,null,null,null,null,null,5000,5000]
[null,null,null,null,null,null,null,null,null,null,5000,5000]
[null,null,null,null,null,null,null,null,null,null,5000,5000]
[null,null,null,null,null,null,null,null,null,null,5000,5000]
[null,null,null,null,null,null,null,null,null,null,5000,5000]
[null,null,null,null,null,null,null,null,null,null,{"$f":"SUM($K$1-I970)","v":5000},{"$f":"K970","v":5000}]
[null,null,null,null,null,null,null,null,null,null,5000,5000]
[null,null,null,null,null,null,null,null,null,null,5000,5000]
[null,null,null,null,null,null,null,null,null,null,5000,5000]
[null,null,null,null,null,null,null,null,null,null,5000,5000]
[null,null,null,null,null,null,null,null,null,null,5000,5000]
[null,null,null,null,null,null,null,null,null,null,5000,5000]
[null,null,null,null,null,null,null,null,null,null,5000,5000]
[null,null,null,null,null,null,null,null,null,null,5000,5000]
[null,null,null,null,null,null,null,null,null,null,5000,5000]
[null,null,null,null,null,null,null,null,null,null,5000,5000]
[null,null,null,null,null,null,null,null,null,null,5000,5000]
[null,null,null,null,null,null,null,null,null,null,5000,5000]
[null,null,null,null,null,null,null,null,null,null,5000,5000]
[null,null,null,null,null,null,null,null,null,null,5000,5000]
[null,null,null,null,null,null,null,null,null,null,5000,5000]
[null,null,null,null,null,null,null,null,null,null,5000,5000]
[null,null,null,null,null,null,null,null,null,null,5000,5000]
[null,null,null,null,null,null,null,null,null,null,5000,5000]
[null,null,null,null,null,null,null,null,null,null,5000,5000]
[null,null,null,null,null,null,null,null,null,null,5000,5000]
[null,null,null,null,null,null,null,null,null,null,5000,5000]
[null,null,null,null,null,null,null,null,null,null,5000,5000]
[null,null,null,null,null,null,null,null,null,null,5000,5000]
[null,null,null,null,null,null,null,null,null,null,5000,5000]
[null,null,null,null,null,null,null,null,null,null,5000,5000]
[null,null,null,null,null,null,null,null,null,null,5000,5000]
[null,null,null,null,null,null,null,null,null,null,5000,5000]
[null,null,null,null,null,null,null,null,null,null,5000,5000]
[null,null,null,null,null,null,null,null,null,null,5000,5000]
[null,null,null,null,null,null,null,null,null,null,5000,5000]
[null,null,null,null,null,null,null,null,null,null,5000,5000]
[null,null,null,null,null,null,null,null,null,null,5000,5000]
[null,null,null,null,null,null,null,null,null,null,5000,5000]

{"sheet":"تركيب نظارة","index":2,"n_rows":1003,"n_cols":28,"rows_kept":1003,"cut":false,"hidden":false,"merged":[[0,1,6,2],[1,4,1,6],[3,4,3,6]]}
[null,null,null,null,null,null,null,null,null,null,300,null,6,{"$f":"kh_ShowImage(M1,B1,108,108)","v":true},null,null,null,null,null,null,null,null,null,null,1]
[null,null,null,null,"اسم الشركة",null,null,null,null,null,null,null,null,null,null,null,null,null,null,null,null,null,null,null,2]
[null,null,null,null,null,null,null,null,null,null,null,null,null,null,null,null,null,null,null,null,null,null,null,null,3]
[null,null,null,null,"تقرير إجمالى عن جميع حالات تركيب نظارة طبيه",null,null,null,null,null,null,null,null,null,null,null,null,null,null,null,null,null,null,null,4]
[null,null,null,null,null,null,null,null,null,null,null,null,null,null,null,null,null,"تركيب نظارة طبية",null,null,null,null,null,null,5]
[null,null,null,null,null,null,null,null,null,null,null,null,null,null,null,null,null,null,null,null,null,null,null,null,6,null,null,"الموظف نفسه"]
[null,null,null,null,null,null,null,null,null,null,null,null,null,null,null,null,null,null,null,null,null,null,null,null,7,null,null,"الأب"]
[null,"م","التاريخ","اسم الموظف","اسم المريض","صله القرابه","رقم الملخص","تشخيص الحاله المرضية","ملاحظات","القيمة المصروفة للعلاج","الرصيد","القيمة المتبقية",null,null,null,null,null,null,null,null,null,null,null,null,8,null,null,"الأم"]
[null,1,"2015-12-14",null,null,null,null,null,null,null,{"$f":"SUM($K$1-I9)","v":300},{"$f":"K9","v":300},null,null,null,null,null,null,null,null,null,null,null,null,9,null,null,"الأبن"]
[null,2,null,null,null,null,null,null,null,null,{"$f":"SUM($K$1-I10)","v":300},{"$f":"K10","v":300},null,null,null,null,null,null,null,null,null,null,null,null,10,null,null,"الأبنه"]
[null,3,null,null,null,null,null,null,null,null,300,300,null,null,null,null,null,null,null,null,null,null,null,null,null,null,null,"الأخ"]
[null,4,null,null,null,null,null,null,null,null,300,300,null,null,null,null,null,null,null,null,null,null,null,null,null,null,null,"الأخت"]
[null,5,null,null,null,null,null,null,null,null,300,300,null,null,null,null,null,null,null,null,null,null,null,null,null,null,null,"الزوجه"]
[null,6,null,null,null,null,null,null,null,null,300,300,null,null,null,null,null,null,null,null,null,null,null,null,null,null,null,"الوالد"]
[null,7,null,null,null,null,null,null,null,null,300,300,null,null,null,null,null,null,null,null,null,null,null,null,null,null,null,"الوالدة"]
[null,8,null,null,null,null,null,null,null,null,300,300]
[null,9,null,null,null,null,null,null,null,null,300,300]
[null,10,null,null,null,null,null,null,null,null,300,300]
[null,11,null,null,null,null,null,null,null,null,300,300]
[null,12,null,null,null,null,null,null,null,null,300,300]
[null,13,null,null,null,null,null,null,null,null,300,300]
[null,14,null,null,null,null,null,null,null,null,300,300]
[null,15,null,null,null,null,null,null,null,null,300,300]
[null,16,null,null,null,null,null,null,null,null,300,300]
[null,17,null,null,null,null,null,null,null,null,300,300]
[null,18,null,null,null,null,null,null,null,null,300,300]
[null,19,null,null,null,null,null,null,null,null,300,300]
[null,20,null,null,null,null,null,null,null,null,300,300]
[null,21,null,null,null,null,null,null,null,null,300,300]
[null,22,null,null,null,null,null,null,null,null,300,300]
[null,23,null,null,null,null,null,null,null,null,300,300]
[null,24,null,null,null,null,null,null,null,null,300,300]
[null,25,null,null,null,null,null,null,null,null,300,300]
[null,26,null,null,null,null,null,null,null,null,300,300]
[null,27,null,null,null,null,null,null,null,null,300,300]
[null,28,null,null,null,null,null,null,null,null,300,300]
[null,29,null,null,null,null,null,null,null,null,300,300]
[null,30,null,null,null,null,null,null,null,null,300,300]
[null,31,null,null,null,null,null,null,null,null,300,300]
[null,32,null,null,null,null,null,null,null,null,300,300]
[null,33,null,null,null,null,null,null,null,null,300,300]
[null,34,null,null,null,null,null,null,null,null,300,300]
[null,35,null,null,null,null,null,null,null,null,300,300]
[null,36,null,null,null,null,null,null,null,null,300,300]
[null,37,null,null,null,null,null,null,null,null,300,300]
[null,38,null,null,null,null,null,null,null,null,300,300]
[null,39,null,null,null,null,null,null,null,null,300,300]
[null,40,null,null,null,null,null,null,null,null,300,300]
[null,41,null,null,null,null,null,null,null,null,300,300]
[null,42,null,null,null,null,null,null,null,null,300,300]
[null,43,null,null,null,null,null,null,null,null,300,300]
[null,44,null,null,null,null,null,null,null,null,300,300]
[null,45,null,null,null,null,null,null,null,null,300,300]
[null,46,null,null,null,null,null,null,null,null,300,300]
[null,47,null,null,null,null,null,null,null,null,300,300]
[null,48,null,null,null,null,null,null,null,null,300,300]
[null,49,null,null,null,null,null,null,null,null,300,300]
[null,50,null,null,null,null,null,null,null,null,300,300]
[null,51,null,null,null,null,null,null,null,null,300,300]
[null,52,null,null,null,null,null,null,null,null,300,300]
[null,53,null,null,null,null,null,null,null,null,300,300]
[null,54,null,null,null,null,null,null,null,null,300,300]
[null,55,null,null,null,null,null,null,null,null,300,300]
[null,56,null,null,null,null,null,null,null,null,300,300]
[null,57,null,null,null,null,null,null,null,null,300,300]
[null,58,null,null,null,null,null,null,null,null,300,300]
[null,59,null,null,null,null,null,null,null,null,300,300]
[null,60,null,null,null,null,null,null,null,null,300,300]
[null,61,null,null,null,null,null,null,null,null,300,300]
[null,62,null,null,null,null,null,null,null,null,300,300]
[null,63,null,null,null,null,null,null,null,null,300,300]
[null,64,null,null,null,null,null,null,null,null,300,300]
[null,65,null,null,null,null,null,null,null,null,300,300]
[null,66,null,null,null,null,null,null,null,null,{"$f":"SUM($K$1-I74)","v":300},{"$f":"K74","v":300}]
[null,67,null,null,null,null,null,null,null,null,300,300]
[null,68,null,null,null,null,null,null,null,null,300,300]
[null,69,null,null,null,null,null,null,null,null,300,300]
[null,70,null,null,null,null,null,null,null,null,300,300]
[null,71,null,null,null,null,null,null,null,null,300,300]
[null,72,null,null,null,null,null,null,null,null,300,300]
[null,73,null,null,null,null,null,null,null,null,300,300]
[null,74,null,null,null,null,null,null,null,null,300,300]
[null,75,null,null,null,null,null,null,null,null,300,300]
[null,76,null,null,null,null,null,null,null,null,300,300]
[null,77,null,null,null,null,null,null,null,null,300,300]
[null,78,null,null,null,null,null,null,null,null,300,300]
[null,79,null,null,null,null,null,null,null,null,300,300]
[null,80,null,null,null,null,null,null,null,null,300,300]
[null,81,null,null,null,null,null,null,null,null,300,300]
[null,82,null,null,null,null,null,null,null,null,300,300]
[null,83,null,null,null,null,null,null,null,null,300,300]
[null,84,null,null,null,null,null,null,null,null,300,300]
[null,85,null,null,null,null,null,null,null,null,300,300]
[null,86,null,null,null,null,null,null,null,null,300,300]
[null,87,null,null,null,null,null,null,null,null,300,300]
[null,88,null,null,null,null,null,null,null,null,300,300]
[null,89,null,null,null,null,null,null,null,null,300,300]
[null,90,null,null,null,null,null,null,null,null,300,300]
[null,91,null,null,null,null,null,null,null,null,300,300]
[null,92,null,null,null,null,null,null,null,null,300,300]
[null,93,null,null,null,null,null,null,null,null,300,300]
[null,94,null,null,null,null,null,null,null,null,300,300]
[null,95,null,null,null,null,null,null,null,null,300,300]
[null,96,null,null,null,null,null,null,null,null,300,300]
[null,97,null,null,null,null,null,null,null,null,300,300]
[null,98,null,null,null,null,null,null,null,null,300,300]
[null,99,null,null,null,null,null,null,null,null,300,300]
[null,100,null,null,null,null,null,null,null,null,300,300]
[null,null,null,null,null,null,null,null,null,null,300,300]
[null,null,null,null,null,null,null,null,null,null,300,300]
[null,null,null,null,null,null,null,null,null,null,300,300]
[null,null,null,null,null,null,null,null,null,null,300,300]
[null,null,null,null,null,null,null,null,null,null,300,300]
[null,null,null,null,null,null,null,null,null,null,300,300]
[null,null,null,null,null,null,null,null,null,null,300,300]
[null,null,null,null,null,null,null,null,null,null,300,300]
[null,null,null,null,null,null,null,null,null,null,300,300]
[null,null,null,null,null,null,null,null,null,null,300,300]
[null,null,null,null,null,null,null,null,null,null,300,300]
[null,null,null,null,null,null,null,null,null,null,300,300]
[null,null,null,null,null,null,null,null,null,null,300,300]
[null,null,null,null,null,null,null,null,null,null,300,300]
[null,null,null,null,null,null,null,null,null,null,300,300]
[null,null,null,null,null,null,null,null,null,null,300,300]
[null,null,null,null,null,null,null,null,null,null,300,300]
[null,null,null,null,null,null,null,null,null,null,300,300]
[null,null,null,null,null,null,null,null,null,null,300,300]
[null,null,null,null,null,null,null,null,null,null,300,300]
[null,null,null,null,null,null,null,null,null,null,300,300]
[null,null,null,null,null,null,null,null,null,null,300,300]
[null,null,null,null,null,null,null,null,null,null,300,300]
[null,null,null,null,null,null,null,null,null,null,300,300]
[null,null,null,null,null,null,null,null,null,null,300,300]
[null,null,null,null,null,null,null,null,null,null,300,300]
[null,null,null,null,null,null,null,null,null,null,300,300]
[null,null,null,null,null,null,null,null,null,null,300,300]
[null,null,null,null,null,null,null,null,null,null,300,300]
[null,null,null,null,null,null,null,null,null,null,{"$f":"SUM($K$1-I138)","v":300},{"$f":"K138","v":300}]
[null,null,null,null,null,null,null,null,null,null,300,300]
[null,null,null,null,null,null,null,null,null,null,300,300]
[null,null,null,null,null,null,null,null,null,null,300,300]
[null,null,null,null,null,null,null,null,null,null,300,300]
[null,null,null,null,null,null,null,null,null,null,300,300]
[null,null,null,null,null,null,null,null,null,null,300,300]
[null,null,null,null,null,null,null,null,null,null,300,300]
[null,null,null,null,null,null,null,null,null,null,300,300]
[null,null,null,null,null,null,null,null,null,null,300,300]
[null,null,null,null,null,null,null,null,null,null,300,300]
[null,null,null,null,null,null,null,null,null,null,300,300]
[null,null,null,null,null,null,null,null,null,null,300,300]
[null,null,null,null,null,null,null,null,null,null,300,300]
[null,null,null,null,null,null,null,null,null,null,300,300]
[null,null,null,null,null,null,null,null,null,null,300,300]
[null,null,null,null,null,null,null,null,null,null,300,300]
[null,null,null,null,null,null,null,null,null,null,300,300]
[null,null,null,null,null,null,null,null,null,null,300,300]
[null,null,null,null,null,null,null,null,null,null,300,300]
[null,null,null,null,null,null,null,null,null,null,300,300]
[null,null,null,null,null,null,null,null,null,null,300,300]
[null,null,null,null,null,null,null,null,null,null,300,300]
[null,null,null,null,null,null,null,null,null,null,300,300]
[null,null,null,null,null,null,null,null,null,null,300,300]
[null,null,null,null,null,null,null,null,null,null,300,300]
[null,null,null,null,null,null,null,null,null,null,300,300]
[null,null,null,null,null,null,null,null,null,null,300,300]
[null,null,null,null,null,null,null,null,null,null,300,300]
[null,null,null,null,null,null,null,null,null,null,300,300]
[null,null,null,null,null,null,null,null,null,null,300,300]
[null,null,null,null,null,null,null,null,null,null,300,300]
[null,null,null,null,null,null,null,null,null,null,300,300]
[null,null,null,null,null,null,null,null,null,null,300,300]
[null,null,null,null,null,null,null,null,null,null,300,300]
[null,null,null,null,null,null,null,null,null,null,300,300]
[null,null,null,null,null,null,null,null,null,null,300,300]
[null,null,null,null,null,null,null,null,null,null,300,300]
[null,null,null,null,null,null,null,null,null,null,300,300]
[null,null,null,null,null,null,null,null,null,null,300,300]
[null,null,null,null,null,null,null,null,null,null,300,300]
[null,null,null,null,null,null,null,null,null,null,300,300]
[null,null,null,null,null,null,null,null,null,null,300,300]
[null,null,null,null,null,null,null,null,null,null,300,300]
[null,null,null,null,null,null,null,null,null,null,300,300]
[null,null,null,null,null,null,null,null,null,null,300,300]
[null,null,null,null,null,null,null,null,null,null,300,300]
[null,null,null,null,null,null,null,null,null,null,300,300]
[null,null,null,null,null,null,null,null,null,null,300,300]
[null,null,null,null,null,null,null,null,null,null,300,300]
[null,null,null,null,null,null,null,null,null,null,300,300]
[null,null,null,null,null,null,null,null,null,null,300,300]
[null,null,null,null,null,null,null,null,null,null,300,300]
[null,null,null,null,null,null,null,null,null,null,300,300]
[null,null,null,null,null,null,null,null,null,null,300,300]
[null,null,null,null,null,null,null,null,null,null,300,300]
[null,null,null,null,null,null,null,null,null,null,300,300]
[null,null,null,null,null,null,null,null,null,null,300,300]
[null,null,null,null,null,null,null,null,null,null,300,300]
[null,null,null,null,null,null,null,null,null,null,300,300]
[null,null,null,null,null,null,null,null,null,null,300,300]
[null,null,null,null,null,null,null,null,null,null,300,300]
[null,null,null,null,null,null,null,null,null,null,300,300]
[null,null,null,null,null,null,null,null,null,null,300,300]
[null,null,null,null,null,null,null,null,null,null,{"$f":"SUM($K$1-I202)","v":300},{"$f":"K202","v":300}]
[null,null,null,null,null,null,null,null,null,null,300,300]
[null,null,null,null,null,null,null,null,null,null,300,300]
[null,null,null,null,null,null,null,null,null,null,300,300]
[null,null,null,null,null,null,null,null,null,null,300,300]
[null,null,null,null,null,null,null,null,null,null,300,300]
[null,null,null,null,null,null,null,null,null,null,300,300]
[null,null,null,null,null,null,null,null,null,null,300,300]
[null,null,null,null,null,null,null,null,null,null,300,300]
[null,null,null,null,null,null,null,null,null,null,300,300]
[null,null,null,null,null,null,null,null,null,null,300,300]
[null,null,null,null,null,null,null,null,null,null,300,300]
[null,null,null,null,null,null,null,null,null,null,300,300]
[null,null,null,null,null,null,null,null,null,null,300,300]
[null,null,null,null,null,null,null,null,null,null,300,300]
[null,null,null,null,null,null,null,null,null,null,300,300]
[null,null,null,null,null,null,null,null,null,null,300,300]
[null,null,null,null,null,null,null,null,null,null,300,300]
[null,null,null,null,null,null,null,null,null,null,300,300]
[null,null,null,null,null,null,null,null,null,null,300,300]
[null,null,null,null,null,null,null,null,null,null,300,300]
[null,null,null,null,null,null,null,null,null,null,300,300]
[null,null,null,null,null,null,null,null,null,null,300,300]
[null,null,null,null,null,null,null,null,null,null,300,300]
[null,null,null,null,null,null,null,null,null,null,300,300]
[null,null,null,null,null,null,null,null,null,null,300,300]
[null,null,null,null,null,null,null,null,null,null,300,300]
[null,null,null,null,null,null,null,null,null,null,300,300]
[null,null,null,null,null,null,null,null,null,null,300,300]
[null,null,null,null,null,null,null,null,null,null,300,300]
[null,null,null,null,null,null,null,null,null,null,300,300]
[null,null,null,null,null,null,null,null,null,null,300,300]
[null,null,null,null,null,null,null,null,null,null,300,300]
[null,null,null,null,null,null,null,null,null,null,300,300]
[null,null,null,null,null,null,null,null,null,null,300,300]
[null,null,null,null,null,null,null,null,null,null,300,300]
[null,null,null,null,null,null,null,null,null,null,300,300]
[null,null,null,null,null,null,null,null,null,null,300,300]
[null,null,null,null,null,null,null,null,null,null,300,300]
[null,null,null,null,null,null,null,null,null,null,300,300]
[null,null,null,null,null,null,null,null,null,null,300,300]
[null,null,null,null,null,null,null,null,null,null,300,300]
[null,null,null,null,null,null,null,null,null,null,300,300]
[null,null,null,null,null,null,null,null,null,null,300,300]
[null,null,null,null,null,null,null,null,null,null,300,300]
[null,null,null,null,null,null,null,null,null,null,300,300]
[null,null,null,null,null,null,null,null,null,null,300,300]
[null,null,null,null,null,null,null,null,null,null,300,300]
[null,null,null,null,null,null,null,null,null,null,300,300]
[null,null,null,null,null,null,null,null,null,null,300,300]
[null,null,null,null,null,null,null,null,null,null,300,300]
[null,null,null,null,null,null,null,null,null,null,300,300]
[null,null,null,null,null,null,null,null,null,null,300,300]
[null,null,null,null,null,null,null,null,null,null,300,300]
[null,null,null,null,null,null,null,null,null,null,300,300]
[null,null,null,null,null,null,null,null,null,null,300,300]
[null,null,null,null,null,null,null,null,null,null,300,300]
[null,null,null,null,null,null,null,null,null,null,300,300]
[null,null,null,null,null,null,null,null,null,null,300,300]
[null,null,null,null,null,null,null,null,null,null,300,300]
[null,null,null,null,null,null,null,null,null,null,300,300]
[null,null,null,null,null,null,null,null,null,null,300,300]
[null,null,null,null,null,null,null,null,null,null,300,300]
[null,null,null,null,null,null,null,null,null,null,300,300]
[null,null,null,null,null,null,null,null,null,null,{"$f":"SUM($K$1-I266)","v":300},{"$f":"K266","v":300}]
[null,null,null,null,null,null,null,null,null,null,300,300]
[null,null,null,null,null,null,null,null,null,null,300,300]
[null,null,null,null,null,null,null,null,null,null,300,300]
[null,null,null,null,null,null,null,null,null,null,300,300]
[null,null,null,null,null,null,null,null,null,null,300,300]
[null,null,null,null,null,null,null,null,null,null,300,300]
[null,null,null,null,null,null,null,null,null,null,300,300]
[null,null,null,null,null,null,null,null,null,null,300,300]
[null,null,null,null,null,null,null,null,null,null,300,300]
[null,null,null,null,null,null,null,null,null,null,300,300]
[null,null,null,null,null,null,null,null,null,null,300,300]
[null,null,null,null,null,null,null,null,null,null,300,300]
[null,null,null,null,null,null,null,null,null,null,300,300]
[null,null,null,null,null,null,null,null,null,null,300,300]
[null,null,null,null,null,null,null,null,null,null,300,300]
[null,null,null,null,null,null,null,null,null,null,300,300]
[null,null,null,null,null,null,null,null,null,null,300,300]
[null,null,null,null,null,null,null,null,null,null,300,300]
[null,null,null,null,null,null,null,null,null,null,300,300]
[null,null,null,null,null,null,null,null,null,null,300,300]
[null,null,null,null,null,null,null,null,null,null,300,300]
[null,null,null,null,null,null,null,null,null,null,300,300]
[null,null,null,null,null,null,null,null,null,null,300,300]
[null,null,null,null,null,null,null,null,null,null,300,300]
[null,null,null,null,null,null,null,null,null,null,300,300]
[null,null,null,null,null,null,null,null,null,null,300,300]
[null,null,null,null,null,null,null,null,null,null,300,300]
[null,null,null,null,null,null,null,null,null,null,300,300]
[null,null,null,null,null,null,null,null,null,null,300,300]
[null,null,null,null,null,null,null,null,null,null,300,300]
[null,null,null,null,null,null,null,null,null,null,300,300]
[null,null,null,null,null,null,null,null,null,null,300,300]
[null,null,null,null,null,null,null,null,null,null,300,300]
[null,null,null,null,null,null,null,null,null,null,300,300]
[null,null,null,null,null,null,null,null,null,null,300,300]
[null,null,null,null,null,null,null,null,null,null,300,300]
[null,null,null,null,null,null,null,null,null,null,300,300]
[null,null,null,null,null,null,null,null,null,null,300,300]
[null,null,null,null,null,null,null,null,null,null,300,300]
[null,null,null,null,null,null,null,null,null,null,300,300]
[null,null,null,null,null,null,null,null,null,null,300,300]
[null,null,null,null,null,null,null,null,null,null,300,300]
[null,null,null,null,null,null,null,null,null,null,300,300]
[null,null,null,null,null,null,null,null,null,null,300,300]
[null,null,null,null,null,null,null,null,null,null,300,300]
[null,null,null,null,null,null,null,null,null,null,300,300]
[null,null,null,null,null,null,null,null,null,null,300,300]
[null,null,null,null,null,null,null,null,null,null,300,300]
[null,null,null,null,null,null,null,null,null,null,300,300]
[null,null,null,null,null,null,null,null,null,null,300,300]
[null,null,null,null,null,null,null,null,null,null,300,300]
[null,null,null,null,null,null,null,null,null,null,300,300]
[null,null,null,null,null,null,null,null,null,null,300,300]
[null,null,null,null,null,null,null,null,null,null,300,300]
[null,null,null,null,null,null,null,null,null,null,300,300]
[null,null,null,null,null,null,null,null,null,null,300,300]
[null,null,null,null,null,null,null,null,null,null,300,300]
[null,null,null,null,null,null,null,null,null,null,300,300]
[null,null,null,null,null,null,null,null,null,null,300,300]
[null,null,null,null,null,null,null,null,null,null,300,300]
[null,null,null,null,null,null,null,null,null,null,300,300]
[null,null,null,null,null,null,null,null,null,null,300,300]
[null,null,null,null,null,null,null,null,null,null,300,300]
[null,null,null,null,null,null,null,null,null,null,{"$f":"SUM($K$1-I330)","v":300},{"$f":"K330","v":300}]
[null,null,null,null,null,null,null,null,null,null,300,300]
[null,null,null,null,null,null,null,null,null,null,300,300]
[null,null,null,null,null,null,null,null,null,null,300,300]
[null,null,null,null,null,null,null,null,null,null,300,300]
[null,null,null,null,null,null,null,null,null,null,300,300]
[null,null,null,null,null,null,null,null,null,null,300,300]
[null,null,null,null,null,null,null,null,null,null,300,300]
[null,null,null,null,null,null,null,null,null,null,300,300]
[null,null,null,null,null,null,null,null,null,null,300,300]
[null,null,null,null,null,null,null,null,null,null,300,300]
[null,null,null,null,null,null,null,null,null,null,300,300]
[null,null,null,null,null,null,null,null,null,null,300,300]
[null,null,null,null,null,null,null,null,null,null,300,300]
[null,null,null,null,null,null,null,null,null,null,300,300]
[null,null,null,null,null,null,null,null,null,null,300,300]
[null,null,null,null,null,null,null,null,null,null,300,300]
[null,null,null,null,null,null,null,null,null,null,300,300]
[null,null,null,null,null,null,null,null,null,null,300,300]
[null,null,null,null,null,null,null,null,null,null,300,300]
[null,null,null,null,null,null,null,null,null,null,300,300]
[null,null,null,null,null,null,null,null,null,null,300,300]
[null,null,null,null,null,null,null,null,null,null,300,300]
[null,null,null,null,null,null,null,null,null,null,300,300]
[null,null,null,null,null,null,null,null,null,null,300,300]
[null,null,null,null,null,null,null,null,null,null,300,300]
[null,null,null,null,null,null,null,null,null,null,300,300]
[null,null,null,null,null,null,null,null,null,null,300,300]
[null,null,null,null,null,null,null,null,null,null,300,300]
[null,null,null,null,null,null,null,null,null,null,300,300]
[null,null,null,null,null,null,null,null,null,null,300,300]
[null,null,null,null,null,null,null,null,null,null,300,300]
[null,null,null,null,null,null,null,null,null,null,300,300]
[null,null,null,null,null,null,null,null,null,null,300,300]
[null,null,null,null,null,null,null,null,null,null,300,300]
[null,null,null,null,null,null,null,null,null,null,300,300]
[null,null,null,null,null,null,null,null,null,null,300,300]
[null,null,null,null,null,null,null,null,null,null,300,300]
[null,null,null,null,null,null,null,null,null,null,300,300]
[null,null,null,null,null,null,null,null,null,null,300,300]
[null,null,null,null,null,null,null,null,null,null,300,300]
[null,null,null,null,null,null,null,null,null,null,300,300]
[null,null,null,null,null,null,null,null,null,null,300,300]
[null,null,null,null,null,null,null,null,null,null,300,300]
[null,null,null,null,null,null,null,null,null,null,300,300]
[null,null,null,null,null,null,null,null,null,null,300,300]
[null,null,null,null,null,null,null,null,null,null,300,300]
[null,null,null,null,null,null,null,null,null,null,300,300]
[null,null,null,null,null,null,null,null,null,null,300,300]
[null,null,null,null,null,null,null,null,null,null,300,300]
[null,null,null,null,null,null,null,null,null,null,300,300]
[null,null,null,null,null,null,null,null,null,null,300,300]
[null,null,null,null,null,null,null,null,null,null,300,300]
[null,null,null,null,null,null,null,null,null,null,300,300]
[null,null,null,null,null,null,null,null,null,null,300,300]
[null,null,null,null,null,null,null,null,null,null,300,300]
[null,null,null,null,null,null,null,null,null,null,300,300]
[null,null,null,null,null,null,null,null,null,null,300,300]
[null,null,null,null,null,null,null,null,null,null,300,300]
[null,null,null,null,null,null,null,null,null,null,300,300]
[null,null,null,null,null,null,null,null,null,null,300,300]
[null,null,null,null,null,null,null,null,null,null,300,300]
[null,null,null,null,null,null,null,null,null,null,300,300]
[null,null,null,null,null,null,null,null,null,null,300,300]
[null,null,null,null,null,null,null,null,null,null,{"$f":"SUM($K$1-I394)","v":300},{"$f":"K394","v":300}]
[null,null,null,null,null,null,null,null,null,null,300,300]
[null,null,null,null,null,null,null,null,null,null,300,300]
[null,null,null,null,null,null,null,null,null,null,300,300]
[null,null,null,null,null,null,null,null,null,null,300,300]
[null,null,null,null,null,null,null,null,null,null,300,300]
[null,null,null,null,null,null,null,null,null,null,300,300]
[null,null,null,null,null,null,null,null,null,null,300,300]
[null,null,null,null,null,null,null,null,null,null,300,300]
[null,null,null,null,null,null,null,null,null,null,300,300]
[null,null,null,null,null,null,null,null,null,null,300,300]
[null,null,null,null,null,null,null,null,null,null,300,300]
[null,null,null,null,null,null,null,null,null,null,300,300]
[null,null,null,null,null,null,null,null,null,null,300,300]
[null,null,null,null,null,null,null,null,null,null,300,300]
[null,null,null,null,null,null,null,null,null,null,300,300]
[null,null,null,null,null,null,null,null,null,null,300,300]
[null,null,null,null,null,null,null,null,null,null,300,300]
[null,null,null,null,null,null,null,null,null,null,300,300]
[null,null,null,null,null,null,null,null,null,null,300,300]
[null,null,null,null,null,null,null,null,null,null,300,300]
[null,null,null,null,null,null,null,null,null,null,300,300]
[null,null,null,null,null,null,null,null,null,null,300,300]
[null,null,null,null,null,null,null,null,null,null,300,300]
[null,null,null,null,null,null,null,null,null,null,300,300]
[null,null,null,null,null,null,null,null,null,null,300,300]
[null,null,null,null,null,null,null,null,null,null,300,300]
[null,null,null,null,null,null,null,null,null,null,300,300]
[null,null,null,null,null,null,null,null,null,null,300,300]
[null,null,null,null,null,null,null,null,null,null,300,300]
[null,null,null,null,null,null,null,null,null,null,300,300]
[null,null,null,null,null,null,null,null,null,null,300,300]
[null,null,null,null,null,null,null,null,null,null,300,300]
[null,null,null,null,null,null,null,null,null,null,300,300]
[null,null,null,null,null,null,null,null,null,null,300,300]
[null,null,null,null,null,null,null,null,null,null,300,300]
[null,null,null,null,null,null,null,null,null,null,300,300]
[null,null,null,null,null,null,null,null,null,null,300,300]
[null,null,null,null,null,null,null,null,null,null,300,300]
[null,null,null,null,null,null,null,null,null,null,300,300]
[null,null,null,null,null,null,null,null,null,null,300,300]
[null,null,null,null,null,null,null,null,null,null,300,300]
[null,null,null,null,null,null,null,null,null,null,300,300]
[null,null,null,null,null,null,null,null,null,null,300,300]
[null,null,null,null,null,null,null,null,null,null,300,300]
[null,null,null,null,null,null,null,null,null,null,300,300]
[null,null,null,null,null,null,null,null,null,null,300,300]
[null,null,null,null,null,null,null,null,null,null,300,300]
[null,null,null,null,null,null,null,null,null,null,300,300]
[null,null,null,null,null,null,null,null,null,null,300,300]
[null,null,null,null,null,null,null,null,null,null,300,300]
[null,null,null,null,null,null,null,null,null,null,300,300]
[null,null,null,null,null,null,null,null,null,null,300,300]
[null,null,null,null,null,null,null,null,null,null,300,300]
[null,null,null,null,null,null,null,null,null,null,300,300]
[null,null,null,null,null,null,null,null,null,null,300,300]
[null,null,null,null,null,null,null,null,null,null,300,300]
[null,null,null,null,null,null,null,null,null,null,300,300]
[null,null,null,null,null,null,null,null,null,null,300,300]
[null,null,null,null,null,null,null,null,null,null,300,300]
[null,null,null,null,null,null,null,null,null,null,300,300]
[null,null,null,null,null,null,null,null,null,null,300,300]
[null,null,null,null,null,null,null,null,null,null,300,300]
[null,null,null,null,null,null,null,null,null,null,300,300]
[null,null,null,null,null,null,null,null,null,null,{"$f":"SUM($K$1-I458)","v":300},{"$f":"K458","v":300}]
[null,null,null,null,null,null,null,null,null,null,300,300]
[null,null,null,null,null,null,null,null,null,null,300,300]
[null,null,null,null,null,null,null,null,null,null,300,300]
[null,null,null,null,null,null,null,null,null,null,300,300]
[null,null,null,null,null,null,null,null,null,null,300,300]
[null,null,null,null,null,null,null,null,null,null,300,300]
[null,null,null,null,null,null,null,null,null,null,300,300]
[null,null,null,null,null,null,null,null,null,null,300,300]
[null,null,null,null,null,null,null,null,null,null,300,300]
[null,null,null,null,null,null,null,null,null,null,300,300]
[null,null,null,null,null,null,null,null,null,null,300,300]
[null,null,null,null,null,null,null,null,null,null,300,300]
[null,null,null,null,null,null,null,null,null,null,300,300]
[null,null,null,null,null,null,null,null,null,null,300,300]
[null,null,null,null,null,null,null,null,null,null,300,300]
[null,null,null,null,null,null,null,null,null,null,300,300]
[null,null,null,null,null,null,null,null,null,null,300,300]
[null,null,null,null,null,null,null,null,null,null,300,300]
[null,null,null,null,null,null,null,null,null,null,300,300]
[null,null,null,null,null,null,null,null,null,null,300,300]
[null,null,null,null,null,null,null,null,null,null,300,300]
[null,null,null,null,null,null,null,null,null,null,300,300]
[null,null,null,null,null,null,null,null,null,null,300,300]
[null,null,null,null,null,null,null,null,null,null,300,300]
[null,null,null,null,null,null,null,null,null,null,300,300]
[null,null,null,null,null,null,null,null,null,null,300,300]
[null,null,null,null,null,null,null,null,null,null,300,300]
[null,null,null,null,null,null,null,null,null,null,300,300]
[null,null,null,null,null,null,null,null,null,null,300,300]
[null,null,null,null,null,null,null,null,null,null,300,300]
[null,null,null,null,null,null,null,null,null,null,300,300]
[null,null,null,null,null,null,null,null,null,null,300,300]
[null,null,null,null,null,null,null,null,null,null,300,300]
[null,null,null,null,null,null,null,null,null,null,300,300]
[null,null,null,null,null,null,null,null,null,null,300,300]
[null,null,null,null,null,null,null,null,null,null,300,300]
[null,null,null,null,null,null,null,null,null,null,300,300]
[null,null,null,null,null,null,null,null,null,null,300,300]
[null,null,null,null,null,null,null,null,null,null,300,300]
[null,null,null,null,null,null,null,null,null,null,300,300]
[null,null,null,null,null,null,null,null,null,null,300,300]
[null,null,null,null,null,null,null,null,null,null,300,300]
[null,null,null,null,null,null,null,null,null,null,300,300]
[null,null,null,null,null,null,null,null,null,null,300,300]
[null,null,null,null,null,null,null,null,null,null,300,300]
[null,null,null,null,null,null,null,null,null,null,300,300]
[null,null,null,null,null,null,null,null,null,null,300,300]
[null,null,null,null,null,null,null,null,null,null,300,300]
[null,null,null,null,null,null,null,null,null,null,300,300]
[null,null,null,null,null,null,null,null,null,null,300,300]
[null,null,null,null,null,null,null,null,null,null,300,300]
[null,null,null,null,null,null,null,null,null,null,300,300]
[null,null,null,null,null,null,null,null,null,null,300,300]
[null,null,null,null,null,null,null,null,null,null,300,300]
[null,null,null,null,null,null,null,null,null,null,300,300]
[null,null,null,null,null,null,null,null,null,null,300,300]
[null,null,null,null,null,null,null,null,null,null,300,300]
[null,null,null,null,null,null,null,null,null,null,300,300]
[null,null,null,null,null,null,null,null,null,null,300,300]
[null,null,null,null,null,null,null,null,null,null,300,300]
[null,null,null,null,null,null,null,null,null,null,300,300]
[null,null,null,null,null,null,null,null,null,null,300,300]
[null,null,null,null,null,null,null,null,null,null,300,300]
[null,null,null,null,null,null,null,null,null,null,{"$f":"SUM($K$1-I522)","v":300},{"$f":"K522","v":300}]
[null,null,null,null,null,null,null,null,null,null,300,300]
[null,null,null,null,null,null,null,null,null,null,300,300]
[null,null,null,null,null,null,null,null,null,null,300,300]
[null,null,null,null,null,null,null,null,null,null,300,300]
[null,null,null,null,null,null,null,null,null,null,300,300]
[null,null,null,null,null,null,null,null,null,null,300,300]
[null,null,null,null,null,null,null,null,null,null,300,300]
[null,null,null,null,null,null,null,null,null,null,300,300]
[null,null,null,null,null,null,null,null,null,null,300,300]
[null,null,null,null,null,null,null,null,null,null,300,300]
[null,null,null,null,null,null,null,null,null,null,300,300]
[null,null,null,null,null,null,null,null,null,null,300,300]
[null,null,null,null,null,null,null,null,null,null,300,300]
[null,null,null,null,null,null,null,null,null,null,300,300]
[null,null,null,null,null,null,null,null,null,null,300,300]
[null,null,null,null,null,null,null,null,null,null,300,300]
[null,null,null,null,null,null,null,null,null,null,300,300]
[null,null,null,null,null,null,null,null,null,null,300,300]
[null,null,null,null,null,null,null,null,null,null,300,300]
[null,null,null,null,null,null,null,null,null,null,300,300]
[null,null,null,null,null,null,null,null,null,null,300,300]
[null,null,null,null,null,null,null,null,null,null,300,300]
[null,null,null,null,null,null,null,null,null,null,300,300]
[null,null,null,null,null,null,null,null,null,null,300,300]
[null,null,null,null,null,null,null,null,null,null,300,300]
[null,null,null,null,null,null,null,null,null,null,300,300]
[null,null,null,null,null,null,null,null,null,null,300,300]
[null,null,null,null,null,null,null,null,null,null,300,300]
[null,null,null,null,null,null,null,null,null,null,300,300]
[null,null,null,null,null,null,null,null,null,null,300,300]
[null,null,null,null,null,null,null,null,null,null,300,300]
[null,null,null,null,null,null,null,null,null,null,300,300]
[null,null,null,null,null,null,null,null,null,null,300,300]
[null,null,null,null,null,null,null,null,null,null,300,300]
[null,null,null,null,null,null,null,null,null,null,300,300]
[null,null,null,null,null,null,null,null,null,null,300,300]
[null,null,null,null,null,null,null,null,null,null,300,300]
[null,null,null,null,null,null,null,null,null,null,300,300]
[null,null,null,null,null,null,null,null,null,null,300,300]
[null,null,null,null,null,null,null,null,null,null,300,300]
[null,null,null,null,null,null,null,null,null,null,300,300]
[null,null,null,null,null,null,null,null,null,null,300,300]
[null,null,null,null,null,null,null,null,null,null,300,300]
[null,null,null,null,null,null,null,null,null,null,300,300]
[null,null,null,null,null,null,null,null,null,null,300,300]
[null,null,null,null,null,null,null,null,null,null,300,300]
[null,null,null,null,null,null,null,null,null,null,300,300]
[null,null,null,null,null,null,null,null,null,null,300,300]
[null,null,null,null,null,null,null,null,null,null,300,300]
[null,null,null,null,null,null,null,null,null,null,300,300]
[null,null,null,null,null,null,null,null,null,null,300,300]
[null,null,null,null,null,null,null,null,null,null,300,300]
[null,null,null,null,null,null,null,null,null,null,300,300]
[null,null,null,null,null,null,null,null,null,null,300,300]
[null,null,null,null,null,null,null,null,null,null,300,300]
[null,null,null,null,null,null,null,null,null,null,300,300]
[null,null,null,null,null,null,null,null,null,null,300,300]
[null,null,null,null,null,null,null,null,null,null,300,300]
[null,null,null,null,null,null,null,null,null,null,300,300]
[null,null,null,null,null,null,null,null,null,null,300,300]
[null,null,null,null,null,null,null,null,null,null,300,300]
[null,null,null,null,null,null,null,null,null,null,300,300]
[null,null,null,null,null,null,null,null,null,null,300,300]
[null,null,null,null,null,null,null,null,null,null,{"$f":"SUM($K$1-I586)","v":300},{"$f":"K586","v":300}]
[null,null,null,null,null,null,null,null,null,null,300,300]
[null,null,null,null,null,null,null,null,null,null,300,300]
[null,null,null,null,null,null,null,null,null,null,300,300]
[null,null,null,null,null,null,null,null,null,null,300,300]
[null,null,null,null,null,null,null,null,null,null,300,300]
[null,null,null,null,null,null,null,null,null,null,300,300]
[null,null,null,null,null,null,null,null,null,null,300,300]
[null,null,null,null,null,null,null,null,null,null,300,300]
[null,null,null,null,null,null,null,null,null,null,300,300]
[null,null,null,null,null,null,null,null,null,null,300,300]
[null,null,null,null,null,null,null,null,null,null,300,300]
[null,null,null,null,null,null,null,null,null,null,300,300]
[null,null,null,null,null,null,null,null,null,null,300,300]
[null,null,null,null,null,null,null,null,null,null,300,300]
[null,null,null,null,null,null,null,null,null,null,300,300]
[null,null,null,null,null,null,null,null,null,null,300,300]
[null,null,null,null,null,null,null,null,null,null,300,300]
[null,null,null,null,null,null,null,null,null,null,300,300]
[null,null,null,null,null,null,null,null,null,null,300,300]
[null,null,null,null,null,null,null,null,null,null,300,300]
[null,null,null,null,null,null,null,null,null,null,300,300]
[null,null,null,null,null,null,null,null,null,null,300,300]
[null,null,null,null,null,null,null,null,null,null,300,300]
[null,null,null,null,null,null,null,null,null,null,300,300]
[null,null,null,null,null,null,null,null,null,null,300,300]
[null,null,null,null,null,null,null,null,null,null,300,300]
[null,null,null,null,null,null,null,null,null,null,300,300]
[null,null,null,null,null,null,null,null,null,null,300,300]
[null,null,null,null,null,null,null,null,null,null,300,300]
[null,null,null,null,null,null,null,null,null,null,300,300]
[null,null,null,null,null,null,null,null,null,null,300,300]
[null,null,null,null,null,null,null,null,null,null,300,300]
[null,null,null,null,null,null,null,null,null,null,300,300]
[null,null,null,null,null,null,null,null,null,null,300,300]
[null,null,null,null,null,null,null,null,null,null,300,300]
[null,null,null,null,null,null,null,null,null,null,300,300]
[null,null,null,null,null,null,null,null,null,null,300,300]
[null,null,null,null,null,null,null,null,null,null,300,300]
[null,null,null,null,null,null,null,null,null,null,300,300]
[null,null,null,null,null,null,null,null,null,null,300,300]
[null,null,null,null,null,null,null,null,null,null,300,300]
[null,null,null,null,null,null,null,null,null,null,300,300]
[null,null,null,null,null,null,null,null,null,null,300,300]
[null,null,null,null,null,null,null,null,null,null,300,300]
[null,null,null,null,null,null,null,null,null,null,300,300]
[null,null,null,null,null,null,null,null,null,null,300,300]
[null,null,null,null,null,null,null,null,null,null,300,300]
[null,null,null,null,null,null,null,null,null,null,300,300]
[null,null,null,null,null,null,null,null,null,null,300,300]
[null,null,null,null,null,null,null,null,null,null,300,300]
[null,null,null,null,null,null,null,null,null,null,300,300]
[null,null,null,null,null,null,null,null,null,null,300,300]
[null,null,null,null,null,null,null,null,null,null,300,300]
[null,null,null,null,null,null,null,null,null,null,300,300]
[null,null,null,null,null,null,null,null,null,null,300,300]
[null,null,null,null,null,null,null,null,null,null,300,300]
[null,null,null,null,null,null,null,null,null,null,300,300]
[null,null,null,null,null,null,null,null,null,null,300,300]
[null,null,null,null,null,null,null,null,null,null,300,300]
[null,null,null,null,null,null,null,null,null,null,300,300]
[null,null,null,null,null,null,null,null,null,null,300,300]
[null,null,null,null,null,null,null,null,null,null,300,300]
[null,null,null,null,null,null,null,null,null,null,300,300]
[null,null,null,null,null,null,null,null,null,null,{"$f":"SUM($K$1-I650)","v":300},{"$f":"K650","v":300}]
[null,null,null,null,null,null,null,null,null,null,300,300]
[null,null,null,null,null,null,null,null,null,null,300,300]
[null,null,null,null,null,null,null,null,null,null,300,300]
[null,null,null,null,null,null,null,null,null,null,300,300]
[null,null,null,null,null,null,null,null,null,null,300,300]
[null,null,null,null,null,null,null,null,null,null,300,300]
[null,null,null,null,null,null,null,null,null,null,300,300]
[null,null,null,null,null,null,null,null,null,null,300,300]
[null,null,null,null,null,null,null,null,null,null,300,300]
[null,null,null,null,null,null,null,null,null,null,300,300]
[null,null,null,null,null,null,null,null,null,null,300,300]
[null,null,null,null,null,null,null,null,null,null,300,300]
[null,null,null,null,null,null,null,null,null,null,300,300]
[null,null,null,null,null,null,null,null,null,null,300,300]
[null,null,null,null,null,null,null,null,null,null,300,300]
[null,null,null,null,null,null,null,null,null,null,300,300]
[null,null,null,null,null,null,null,null,null,null,300,300]
[null,null,null,null,null,null,null,null,null,null,300,300]
[null,null,null,null,null,null,null,null,null,null,300,300]
[null,null,null,null,null,null,null,null,null,null,300,300]
[null,null,null,null,null,null,null,null,null,null,300,300]
[null,null,null,null,null,null,null,null,null,null,300,300]
[null,null,null,null,null,null,null,null,null,null,300,300]
[null,null,null,null,null,null,null,null,null,null,300,300]
[null,null,null,null,null,null,null,null,null,null,300,300]
[null,null,null,null,null,null,null,null,null,null,300,300]
[null,null,null,null,null,null,null,null,null,null,300,300]
[null,null,null,null,null,null,null,null,null,null,300,300]
[null,null,null,null,null,null,null,null,null,null,300,300]
[null,null,null,null,null,null,null,null,null,null,300,300]
[null,null,null,null,null,null,null,null,null,null,300,300]
[null,null,null,null,null,null,null,null,null,null,300,300]
[null,null,null,null,null,null,null,null,null,null,300,300]
[null,null,null,null,null,null,null,null,null,null,300,300]
[null,null,null,null,null,null,null,null,null,null,300,300]
[null,null,null,null,null,null,null,null,null,null,300,300]
[null,null,null,null,null,null,null,null,null,null,300,300]
[null,null,null,null,null,null,null,null,null,null,300,300]
[null,null,null,null,null,null,null,null,null,null,300,300]
[null,null,null,null,null,null,null,null,null,null,300,300]
[null,null,null,null,null,null,null,null,null,null,300,300]
[null,null,null,null,null,null,null,null,null,null,300,300]
[null,null,null,null,null,null,null,null,null,null,300,300]
[null,null,null,null,null,null,null,null,null,null,300,300]
[null,null,null,null,null,null,null,null,null,null,300,300]
[null,null,null,null,null,null,null,null,null,null,300,300]
[null,null,null,null,null,null,null,null,null,null,300,300]
[null,null,null,null,null,null,null,null,null,null,300,300]
[null,null,null,null,null,null,null,null,null,null,300,300]
[null,null,null,null,null,null,null,null,null,null,300,300]
[null,null,null,null,null,null,null,null,null,null,300,300]
[null,null,null,null,null,null,null,null,null,null,300,300]
[null,null,null,null,null,null,null,null,null,null,300,300]
[null,null,null,null,null,null,null,null,null,null,300,300]
[null,null,null,null,null,null,null,null,null,null,300,300]
[null,null,null,null,null,null,null,null,null,null,300,300]
[null,null,null,null,null,null,null,null,null,null,300,300]
[null,null,null,null,null,null,null,null,null,null,300,300]
[null,null,null,null,null,null,null,null,null,null,300,300]
[null,null,null,null,null,null,null,null,null,null,300,300]
[null,null,null,null,null,null,null,null,null,null,300,300]
[null,null,null,null,null,null,null,null,null,null,300,300]
[null,null,null,null,null,null,null,null,null,null,300,300]
[null,null,null,null,null,null,null,null,null,null,{"$f":"SUM($K$1-I714)","v":300},{"$f":"K714","v":300}]
[null,null,null,null,null,null,null,null,null,null,300,300]
[null,null,null,null,null,null,null,null,null,null,300,300]
[null,null,null,null,null,null,null,null,null,null,300,300]
[null,null,null,null,null,null,null,null,null,null,300,300]
[null,null,null,null,null,null,null,null,null,null,300,300]
[null,null,null,null,null,null,null,null,null,null,300,300]
[null,null,null,null,null,null,null,null,null,null,300,300]
[null,null,null,null,null,null,null,null,null,null,300,300]
[null,null,null,null,null,null,null,null,null,null,300,300]
[null,null,null,null,null,null,null,null,null,null,300,300]
[null,null,null,null,null,null,null,null,null,null,300,300]
[null,null,null,null,null,null,null,null,null,null,300,300]
[null,null,null,null,null,null,null,null,null,null,300,300]
[null,null,null,null,null,null,null,null,null,null,300,300]
[null,null,null,null,null,null,null,null,null,null,300,300]
[null,null,null,null,null,null,null,null,null,null,300,300]
[null,null,null,null,null,null,null,null,null,null,300,300]
[null,null,null,null,null,null,null,null,null,null,300,300]
[null,null,null,null,null,null,null,null,null,null,300,300]
[null,null,null,null,null,null,null,null,null,null,300,300]
[null,null,null,null,null,null,null,null,null,null,300,300]
[null,null,null,null,null,null,null,null,null,null,300,300]
[null,null,null,null,null,null,null,null,null,null,300,300]
[null,null,null,null,null,null,null,null,null,null,300,300]
[null,null,null,null,null,null,null,null,null,null,300,300]
[null,null,null,null,null,null,null,null,null,null,300,300]
[null,null,null,null,null,null,null,null,null,null,300,300]
[null,null,null,null,null,null,null,null,null,null,300,300]
[null,null,null,null,null,null,null,null,null,null,300,300]
[null,null,null,null,null,null,null,null,null,null,300,300]
[null,null,null,null,null,null,null,null,null,null,300,300]
[null,null,null,null,null,null,null,null,null,null,300,300]
[null,null,null,null,null,null,null,null,null,null,300,300]
[null,null,null,null,null,null,null,null,null,null,300,300]
[null,null,null,null,null,null,null,null,null,null,300,300]
[null,null,null,null,null,null,null,null,null,null,300,300]
[null,null,null,null,null,null,null,null,null,null,300,300]
[null,null,null,null,null,null,null,null,null,null,300,300]
[null,null,null,null,null,null,null,null,null,null,300,300]
[null,null,null,null,null,null,null,null,null,null,300,300]
[null,null,null,null,null,null,null,null,null,null,300,300]
[null,null,null,null,null,null,null,null,null,null,300,300]
[null,null,null,null,null,null,null,null,null,null,300,300]
[null,null,null,null,null,null,null,null,null,null,300,300]
[null,null,null,null,null,null,null,null,null,null,300,300]
[null,null,null,null,null,null,null,null,null,null,300,300]
[null,null,null,null,null,null,null,null,null,null,300,300]
[null,null,null,null,null,null,null,null,null,null,300,300]
[null,null,null,null,null,null,null,null,null,null,300,300]
[null,null,null,null,null,null,null,null,null,null,300,300]
[null,null,null,null,null,null,null,null,null,null,300,300]
[null,null,null,null,null,null,null,null,null,null,300,300]
[null,null,null,null,null,null,null,null,null,null,300,300]
[null,null,null,null,null,null,null,null,null,null,300,300]
[null,null,null,null,null,null,null,null,null,null,300,300]
[null,null,null,null,null,null,null,null,null,null,300,300]
[null,null,null,null,null,null,null,null,null,null,300,300]
[null,null,null,null,null,null,null,null,null,null,300,300]
[null,null,null,null,null,null,null,null,null,null,300,300]
[null,null,null,null,null,null,null,null,null,null,300,300]
[null,null,null,null,null,null,null,null,null,null,300,300]
[null,null,null,null,null,null,null,null,null,null,300,300]
[null,null,null,null,null,null,null,null,null,null,300,300]
[null,null,null,null,null,null,null,null,null,null,{"$f":"SUM($K$1-I778)","v":300},{"$f":"K778","v":300}]
[null,null,null,null,null,null,null,null,null,null,300,300]
[null,null,null,null,null,null,null,null,null,null,300,300]
[null,null,null,null,null,null,null,null,null,null,300,300]
[null,null,null,null,null,null,null,null,null,null,300,300]
[null,null,null,null,null,null,null,null,null,null,300,300]
[null,null,null,null,null,null,null,null,null,null,300,300]
[null,null,null,null,null,null,null,null,null,null,300,300]
[null,null,null,null,null,null,null,null,null,null,300,300]
[null,null,null,null,null,null,null,null,null,null,300,300]
[null,null,null,null,null,null,null,null,null,null,300,300]
[null,null,null,null,null,null,null,null,null,null,300,300]
[null,null,null,null,null,null,null,null,null,null,300,300]
[null,null,null,null,null,null,null,null,null,null,300,300]
[null,null,null,null,null,null,null,null,null,null,300,300]
[null,null,null,null,null,null,null,null,null,null,300,300]
[null,null,null,null,null,null,null,null,null,null,300,300]
[null,null,null,null,null,null,null,null,null,null,300,300]
[null,null,null,null,null,null,null,null,null,null,300,300]
[null,null,null,null,null,null,null,null,null,null,300,300]
[null,null,null,null,null,null,null,null,null,null,300,300]
[null,null,null,null,null,null,null,null,null,null,300,300]
[null,null,null,null,null,null,null,null,null,null,300,300]
[null,null,null,null,null,null,null,null,null,null,300,300]
[null,null,null,null,null,null,null,null,null,null,300,300]
[null,null,null,null,null,null,null,null,null,null,300,300]
[null,null,null,null,null,null,null,null,null,null,300,300]
[null,null,null,null,null,null,null,null,null,null,300,300]
[null,null,null,null,null,null,null,null,null,null,300,300]
[null,null,null,null,null,null,null,null,null,null,300,300]
[null,null,null,null,null,null,null,null,null,null,300,300]
[null,null,null,null,null,null,null,null,null,null,300,300]
[null,null,null,null,null,null,null,null,null,null,300,300]
[null,null,null,null,null,null,null,null,null,null,300,300]
[null,null,null,null,null,null,null,null,null,null,300,300]
[null,null,null,null,null,null,null,null,null,null,300,300]
[null,null,null,null,null,null,null,null,null,null,300,300]
[null,null,null,null,null,null,null,null,null,null,300,300]
[null,null,null,null,null,null,null,null,null,null,300,300]
[null,null,null,null,null,null,null,null,null,null,300,300]
[null,null,null,null,null,null,null,null,null,null,300,300]
[null,null,null,null,null,null,null,null,null,null,300,300]
[null,null,null,null,null,null,null,null,null,null,300,300]
[null,null,null,null,null,null,null,null,null,null,300,300]
[null,null,null,null,null,null,null,null,null,null,300,300]
[null,null,null,null,null,null,null,null,null,null,300,300]
[null,null,null,null,null,null,null,null,null,null,300,300]
[null,null,null,null,null,null,null,null,null,null,300,300]
[null,null,null,null,null,null,null,null,null,null,300,300]
[null,null,null,null,null,null,null,null,null,null,300,300]
[null,null,null,null,null,null,null,null,null,null,300,300]
[null,null,null,null,null,null,null,null,null,null,300,300]
[null,null,null,null,null,null,null,null,null,null,300,300]
[null,null,null,null,null,null,null,null,null,null,300,300]
[null,null,null,null,null,null,null,null,null,null,300,300]
[null,null,null,null,null,null,null,null,null,null,300,300]
[null,null,null,null,null,null,null,null,null,null,300,300]
[null,null,null,null,null,null,null,null,null,null,300,300]
[null,null,null,null,null,null,null,null,null,null,300,300]
[null,null,null,null,null,null,null,null,null,null,300,300]
[null,null,null,null,null,null,null,null,null,null,300,300]
[null,null,null,null,null,null,null,null,null,null,300,300]
[null,null,null,null,null,null,null,null,null,null,300,300]
[null,null,null,null,null,null,null,null,null,null,300,300]
[null,null,null,null,null,null,null,null,null,null,{"$f":"SUM($K$1-I842)","v":300},{"$f":"K842","v":300}]
[null,null,null,null,null,null,null,null,null,null,300,300]
[null,null,null,null,null,null,null,null,null,null,300,300]
[null,null,null,null,null,null,null,null,null,null,300,300]
[null,null,null,null,null,null,null,null,null,null,300,300]
[null,null,null,null,null,null,null,null,null,null,300,300]
[null,null,null,null,null,null,null,null,null,null,300,300]
[null,null,null,null,null,null,null,null,null,null,300,300]
[null,null,null,null,null,null,null,null,null,null,300,300]
[null,null,null,null,null,null,null,null,null,null,300,300]
[null,null,null,null,null,null,null,null,null,null,300,300]
[null,null,null,null,null,null,null,null,null,null,300,300]
[null,null,null,null,null,null,null,null,null,null,300,300]
[null,null,null,null,null,null,null,null,null,null,300,300]
[null,null,null,null,null,null,null,null,null,null,300,300]
[null,null,null,null,null,null,null,null,null,null,300,300]
[null,null,null,null,null,null,null,null,null,null,300,300]
[null,null,null,null,null,null,null,null,null,null,300,300]
[null,null,null,null,null,null,null,null,null,null,300,300]
[null,null,null,null,null,null,null,null,null,null,300,300]
[null,null,null,null,null,null,null,null,null,null,300,300]
[null,null,null,null,null,null,null,null,null,null,300,300]
[null,null,null,null,null,null,null,null,null,null,300,300]
[null,null,null,null,null,null,null,null,null,null,300,300]
[null,null,null,null,null,null,null,null,null,null,300,300]
[null,null,null,null,null,null,null,null,null,null,300,300]
[null,null,null,null,null,null,null,null,null,null,300,300]
[null,null,null,null,null,null,null,null,null,null,300,300]
[null,null,null,null,null,null,null,null,null,null,300,300]
[null,null,null,null,null,null,null,null,null,null,300,300]
[null,null,null,null,null,null,null,null,null,null,300,300]
[null,null,null,null,null,null,null,null,null,null,300,300]
[null,null,null,null,null,null,null,null,null,null,300,300]
[null,null,null,null,null,null,null,null,null,null,300,300]
[null,null,null,null,null,null,null,null,null,null,300,300]
[null,null,null,null,null,null,null,null,null,null,300,300]
[null,null,null,null,null,null,null,null,null,null,300,300]
[null,null,null,null,null,null,null,null,null,null,300,300]
[null,null,null,null,null,null,null,null,null,null,300,300]
[null,null,null,null,null,null,null,null,null,null,300,300]
[null,null,null,null,null,null,null,null,null,null,300,300]
[null,null,null,null,null,null,null,null,null,null,300,300]
[null,null,null,null,null,null,null,null,null,null,300,300]
[null,null,null,null,null,null,null,null,null,null,300,300]
[null,null,null,null,null,null,null,null,null,null,300,300]
[null,null,null,null,null,null,null,null,null,null,300,300]
[null,null,null,null,null,null,null,null,null,null,300,300]
[null,null,null,null,null,null,null,null,null,null,300,300]
[null,null,null,null,null,null,null,null,null,null,300,300]
[null,null,null,null,null,null,null,null,null,null,300,300]
[null,null,null,null,null,null,null,null,null,null,300,300]
[null,null,null,null,null,null,null,null,null,null,300,300]
[null,null,null,null,null,null,null,null,null,null,300,300]
[null,null,null,null,null,null,null,null,null,null,300,300]
[null,null,null,null,null,null,null,null,null,null,300,300]
[null,null,null,null,null,null,null,null,null,null,300,300]
[null,null,null,null,null,null,null,null,null,null,300,300]
[null,null,null,null,null,null,null,null,null,null,300,300]
[null,null,null,null,null,null,null,null,null,null,300,300]
[null,null,null,null,null,null,null,null,null,null,300,300]
[null,null,null,null,null,null,null,null,null,null,300,300]
[null,null,null,null,null,null,null,null,null,null,300,300]
[null,null,null,null,null,null,null,null,null,null,300,300]
[null,null,null,null,null,null,null,null,null,null,300,300]
[null,null,null,null,null,null,null,null,null,null,{"$f":"SUM($K$1-I906)","v":300},{"$f":"K906","v":300}]
[null,null,null,null,null,null,null,null,null,null,300,300]
[null,null,null,null,null,null,null,null,null,null,300,300]
[null,null,null,null,null,null,null,null,null,null,300,300]
[null,null,null,null,null,null,null,null,null,null,300,300]
[null,null,null,null,null,null,null,null,null,null,300,300]
[null,null,null,null,null,null,null,null,null,null,300,300]
[null,null,null,null,null,null,null,null,null,null,300,300]
[null,null,null,null,null,null,null,null,null,null,300,300]
[null,null,null,null,null,null,null,null,null,null,300,300]
[null,null,null,null,null,null,null,null,null,null,300,300]
[null,null,null,null,null,null,null,null,null,null,300,300]
[null,null,null,null,null,null,null,null,null,null,300,300]
[null,null,null,null,null,null,null,null,null,null,300,300]
[null,null,null,null,null,null,null,null,null,null,300,300]
[null,null,null,null,null,null,null,null,null,null,300,300]
[null,null,null,null,null,null,null,null,null,null,300,300]
[null,null,null,null,null,null,null,null,null,null,300,300]
[null,null,null,null,null,null,null,null,null,null,300,300]
[null,null,null,null,null,null,null,null,null,null,300,300]
[null,null,null,null,null,null,null,null,null,null,300,300]
[null,null,null,null,null,null,null,null,null,null,300,300]
[null,null,null,null,null,null,null,null,null,null,300,300]
[null,null,null,null,null,null,null,null,null,null,300,300]
[null,null,null,null,null,null,null,null,null,null,300,300]
[null,null,null,null,null,null,null,null,null,null,300,300]
[null,null,null,null,null,null,null,null,null,null,300,300]
[null,null,null,null,null,null,null,null,null,null,300,300]
[null,null,null,null,null,null,null,null,null,null,300,300]
[null,null,null,null,null,null,null,null,null,null,300,300]
[null,null,null,null,null,null,null,null,null,null,300,300]
[null,null,null,null,null,null,null,null,null,null,300,300]
[null,null,null,null,null,null,null,null,null,null,300,300]
[null,null,null,null,null,null,null,null,null,null,300,300]
[null,null,null,null,null,null,null,null,null,null,300,300]
[null,null,null,null,null,null,null,null,null,null,300,300]
[null,null,null,null,null,null,null,null,null,null,300,300]
[null,null,null,null,null,null,null,null,null,null,300,300]
[null,null,null,null,null,null,null,null,null,null,300,300]
[null,null,null,null,null,null,null,null,null,null,300,300]
[null,null,null,null,null,null,null,null,null,null,300,300]
[null,null,null,null,null,null,null,null,null,null,300,300]
[null,null,null,null,null,null,null,null,null,null,300,300]
[null,null,null,null,null,null,null,null,null,null,300,300]
[null,null,null,null,null,null,null,null,null,null,300,300]
[null,null,null,null,null,null,null,null,null,null,300,300]
[null,null,null,null,null,null,null,null,null,null,300,300]
[null,null,null,null,null,null,null,null,null,null,300,300]
[null,null,null,null,null,null,null,null,null,null,300,300]
[null,null,null,null,null,null,null,null,null,null,300,300]
[null,null,null,null,null,null,null,null,null,null,300,300]
[null,null,null,null,null,null,null,null,null,null,300,300]
[null,null,null,null,null,null,null,null,null,null,300,300]
[null,null,null,null,null,null,null,null,null,null,300,300]
[null,null,null,null,null,null,null,null,null,null,300,300]
[null,null,null,null,null,null,null,null,null,null,300,300]
[null,null,null,null,null,null,null,null,null,null,300,300]
[null,null,null,null,null,null,null,null,null,null,300,300]
[null,null,null,null,null,null,null,null,null,null,300,300]
[null,null,null,null,null,null,null,null,null,null,300,300]
[null,null,null,null,null,null,null,null,null,null,300,300]
[null,null,null,null,null,null,null,null,null,null,300,300]
[null,null,null,null,null,null,null,null,null,null,300,300]
[null,null,null,null,null,null,null,null,null,null,300,300]
[null,null,null,null,null,null,null,null,null,null,{"$f":"SUM($K$1-I970)","v":300},{"$f":"K970","v":300}]
[null,null,null,null,null,null,null,null,null,null,300,300]
[null,null,null,null,null,null,null,null,null,null,300,300]
[null,null,null,null,null,null,null,null,null,null,300,300]
[null,null,null,null,null,null,null,null,null,null,300,300]
[null,null,null,null,null,null,null,null,null,null,300,300]
[null,null,null,null,null,null,null,null,null,null,300,300]
[null,null,null,null,null,null,null,null,null,null,300,300]
[null,null,null,null,null,null,null,null,null,null,300,300]
[null,null,null,null,null,null,null,null,null,null,300,300]
[null,null,null,null,null,null,null,null,null,null,300,300]
[null,null,null,null,null,null,null,null,null,null,300,300]
[null,null,null,null,null,null,null,null,null,null,300,300]
[null,null,null,null,null,null,null,null,null,null,300,300]
[null,null,null,null,null,null,null,null,null,null,300,300]
[null,null,null,null,null,null,null,null,null,null,300,300]
[null,null,null,null,null,null,null,null,null,null,300,300]
[null,null,null,null,null,null,null,null,null,null,300,300]
[null,null,null,null,null,null,null,null,null,null,300,300]
[null,null,null,null,null,null,null,null,null,null,300,300]
[null,null,null,null,null,null,null,null,null,null,300,300]
[null,null,null,null,null,null,null,null,null,null,300,300]
[null,null,null,null,null,null,null,null,null,null,300,300]
[null,null,null,null,null,null,null,null,null,null,300,300]
[null,null,null,null,null,null,null,null,null,null,300,300]
[null,null,null,null,null,null,null,null,null,null,300,300]
[null,null,null,null,null,null,null,null,null,null,300,300]
[null,null,null,null,null,null,null,null,null,null,300,300]
[null,null,null,null,null,null,null,null,null,null,300,300]
[null,null,null,null,null,null,null,null,null,null,300,300]
[null,null,null,null,null,null,null,null,null,null,300,300]
[null,null,null,null,null,null,null,null,null,null,300,300]
[null,null,null,null,null,null,null,null,null,null,300,300]
[null,null,null,null,null,null,null,null,null,null,300,300]